{"text_format":"3","workbook":"xlsx","n_sheets":4,"sheets":["Pontszámkövető","Saját teljesítmény","Beállítások","Számítások"],"not_rendered":{"defined_names":3,"comments":1},"read":"whole","date_system":"1900"}

{"sheet":"Pontszámkövető","index":0,"n_rows":14,"n_cols":6,"rows_kept":14}
[null,"Ide írja a pontszámait"]
[]
[null,null,"Tantárgy","Típus","Leírás","Pontszám"]
[null,null,"Modern francia","Házi feladat","A II. világháború története",{"v":0.8,"d":"80%"}]
[null,null,"Haladó Java-programozás","Zárthelyi",null,{"v":0.75,"d":"75%"}]
[null,null,"Spanyol","Házi feladat",null,{"v":0.5,"d":"50%"}]
[null,null,"Elméleti fizika","Házi feladat",null,{"v":0.95,"d":"95%"}]
[null,null,"Modern francia","Házi feladat","Az I. világháború története",{"v":0.9,"d":"90%"}]
[null,null,"Modern francia","Házi feladat","30–41. oldal",{"v":0.8,"d":"80%"}]
[null,null,"Fogalmazás","Dolgozat","Vita",{"v":0.95,"d":"95%"}]
[null,null,"Matematika 1","Házi feladat","21. és 26. oldal",{"v":0.8,"d":"80%"}]
[null,null,"Matematika 2","Házi feladat","15. és 18. oldal",{"v":0.85,"d":"85%"}]
[null,null,"Matematika 1","Házi feladat","34–36. oldal",{"v":0.8,"d":"80%"}]
[null,null,"Matematika 2","Teszt",null,{"v":0.95,"d":"95%"}]

{"sheet":"Saját teljesítmény","index":1,"n_rows":31,"n_cols":8,"rows_kept":31}
[null,"Saját teljesítmény"]
[]
[null,null,"Összesen"]
[null,null,{"$f":"\"Naponta: \"&SUM(táblázatTantárgyak[Kreditóraszám])","v":"Naponta: 24"},{"$f":"AVERAGE(D7:D31)","v":{"v":0.8104761904761906,"d":"81%"}},{"$f":"AVERAGE(E7:E31)","v":{"v":2.7142857142857144,"d":"2.71"}},{"$f":"SUM(F7:F31)","v":{"v":2.625,"d":"2.63"}},{"$f":"IFERROR(HLOOKUP(D4,listaÁtlagMegfeleltetés,2),\"\")","v":"B-"}]
[]
[null,null,"Tantárgyak","%","Átlag","S. átlag","Betűvel","Általános teljesítmény"]
[null,null,{"$f":"Számítások!C6","v":"Modern francia"},{"$f":"Számítások!AL6","v":{"v":0.8333333333333334,"d":"83%"}},{"$f":"Számítások!AM6","v":{"v":3,"d":"3.00"}},{"$f":"IFERROR(E7*Beállítások!D9/SUM(táblázatTantárgyak[Kreditóraszám]),\"\")","v":{"v":0.375,"d":"0.38"}},{"$f":"Számítások!AN6","v":"B"}]
[null,null,{"$f":"Számítások!C7","v":"Elméleti fizika"},{"$f":"Számítások!AL7","v":{"v":0.95,"d":"95%"}},{"$f":"Számítások!AM7","v":{"v":4,"d":"4.00"}},{"$f":"IFERROR(E8*Beállítások!D10/SUM(táblázatTantárgyak[Kreditóraszám]),\"\")","v":{"v":0.5,"d":"0.50"}},{"$f":"Számítások!AN7","v":"A"}]
[null,null,{"$f":"Számítások!C8","v":"Matematika 1"},{"$f":"Számítások!AL8","v":{"v":0.8000000000000002,"d":"80%"}},{"$f":"Számítások!AM8","v":2.67},{"$f":"IFERROR(E9*Beállítások!D11/SUM(táblázatTantárgyak[Kreditóraszám]),\"\")","v":{"v":0.445,"d":"0.45"}},{"$f":"Számítások!AN8","v":"B-"}]
[null,null,{"$f":"Számítások!C9","v":"Matematika 2"},{"$f":"Számítások!AL9","v":{"v":0.89,"d":"89%"}},{"$f":"Számítások!AM9","v":3.33},{"$f":"IFERROR(E10*Beállítások!D12/SUM(táblázatTantárgyak[Kreditóraszám]),\"\")","v":{"v":0.555,"d":"0.56"}},{"$f":"Számítások!AN9","v":"B+"}]
[null,null,{"$f":"Számítások!C10","v":"Haladó Java-programozás"},{"$f":"Számítások!AL10","v":{"v":0.7500000000000001,"d":"75%"}},{"$f":"Számítások!AM10","v":{"v":2,"d":"2.00"}},{"$f":"IFERROR(E11*Beállítások!D13/SUM(táblázatTantárgyak[Kreditóraszám]),\"\")","v":{"v":0.4166666666666667,"d":"0.42"}},{"$f":"Számítások!AN10","v":"C"}]
[null,null,{"$f":"Számítások!C11","v":"Spanyol"},{"$f":"Számítások!AL11","v":{"v":0.5,"d":"50%"}},{"$f":"Számítások!AM11","v":{"v":0,"d":"0.00"}},{"$f":"IFERROR(E12*Beállítások!D14/SUM(táblázatTantárgyak[Kreditóraszám]),\"\")","v":{"v":0,"d":"0.00"}},{"$f":"Számítások!AN11","v":"F"}]
[null,null,{"$f":"Számítások!C12","v":"Fogalmazás"},{"$f":"Számítások!AL12","v":{"v":0.95,"d":"95%"}},{"$f":"Számítások!AM12","v":{"v":4,"d":"4.00"}},{"$f":"IFERROR(E13*Beállítások!D15/SUM(táblázatTantárgyak[Kreditóraszám]),\"\")","v":{"v":0.3333333333333333,"d":"0.33"}},{"$f":"Számítások!AN12","v":"A"}]
[null,null,{"$f":"Számítások!C13","v":""},{"$f":"Számítások!AL13","v":""},{"$f":"Számítások!AM13","v":""},{"$f":"IFERROR(E14*Beállítások!D16/SUM(táblázatTantárgyak[Kreditóraszám]),\"\")","v":""},{"$f":"Számítások!AN13","v":""}]
[null,null,{"$f":"Számítások!C14","v":""},{"$f":"Számítások!AL14","v":""},{"$f":"Számítások!AM14","v":""},{"$f":"IFERROR(E15*Beállítások!D17/SUM(táblázatTantárgyak[Kreditóraszám]),\"\")","v":""},{"$f":"Számítások!AN14","v":""}]
[null,null,{"$f":"Számítások!C15","v":""},{"$f":"Számítások!AL15","v":""},{"$f":"Számítások!AM15","v":""},{"$f":"IFERROR(E16*Beállítások!D18/SUM(táblázatTantárgyak[Kreditóraszám]),\"\")","v":""},{"$f":"Számítások!AN15","v":""}]
[null,null,{"$f":"Számítások!C16","v":""},{"$f":"Számítások!AL16","v":""},{"$f":"Számítások!AM16","v":""},{"$f":"IFERROR(E17*Beállítások!D19/SUM(táblázatTantárgyak[Kreditóraszám]),\"\")","v":""},{"$f":"Számítások!AN16","v":""}]
[null,null,{"$f":"Számítások!C17","v":""},{"$f":"Számítások!AL17","v":""},{"$f":"Számítások!AM17","v":""},{"$f":"IFERROR(E18*Beállítások!D20/SUM(táblázatTantárgyak[Kreditóraszám]),\"\")","v":""},{"$f":"Számítások!AN17","v":""}]
[null,null,{"$f":"Számítások!C18","v":""},{"$f":"Számítások!AL18","v":""},{"$f":"Számítások!AM18","v":""},{"$f":"IFERROR(E19*Beállítások!D21/SUM(táblázatTantárgyak[Kreditóraszám]),\"\")","v":""},{"$f":"Számítások!AN18","v":""}]
[null,null,{"$f":"Számítások!C19","v":""},{"$f":"Számítások!AL19","v":""},{"$f":"Számítások!AM19","v":""},{"$f":"IFERROR(E20*Beállítások!D22/SUM(táblázatTantárgyak[Kreditóraszám]),\"\")","v":""},{"$f":"Számítások!AN19","v":""}]
[null,null,{"$f":"Számítások!C20","v":""},{"$f":"Számítások!AL20","v":""},{"$f":"Számítások!AM20","v":""},{"$f":"IFERROR(E21*Beállítások!D23/SUM(táblázatTantárgyak[Kreditóraszám]),\"\")","v":""},{"$f":"Számítások!AN20","v":""}]
[null,null,{"$f":"Számítások!C21","v":""},{"$f":"Számítások!AL21","v":""},{"$f":"Számítások!AM21","v":""},{"$f":"IFERROR(E22*Beállítások!D24/SUM(táblázatTantárgyak[Kreditóraszám]),\"\")","v":""},{"$f":"Számítások!AN21","v":""}]
[null,null,{"$f":"Számítások!C22","v":""},{"$f":"Számítások!AL22","v":""},{"$f":"Számítások!AM22","v":""},{"$f":"IFERROR(E23*Beállítások!D25/SUM(táblázatTantárgyak[Kreditóraszám]),\"\")","v":""},{"$f":"Számítások!AN22","v":""}]
[null,null,{"$f":"Számítások!C23","v":""},{"$f":"Számítások!AL23","v":""},{"$f":"Számítások!AM23","v":""},{"$f":"IFERROR(E24*Beállítások!D26/SUM(táblázatTantárgyak[Kreditóraszám]),\"\")","v":""},{"$f":"Számítások!AN23","v":""}]
[null,null,{"$f":"Számítások!C24","v":""},{"$f":"Számítások!AL24","v":""},{"$f":"Számítások!AM24","v":""},{"$f":"IFERROR(E25*Beállítások!D27/SUM(táblázatTantárgyak[Kreditóraszám]),\"\")","v":""},{"$f":"Számítások!AN24","v":""}]
[null,null,{"$f":"Számítások!C25","v":""},{"$f":"Számítások!AL25","v":""},{"$f":"Számítások!AM25","v":""},{"$f":"IFERROR(E26*Beállítások!D28/SUM(táblázatTantárgyak[Kreditóraszám]),\"\")","v":""},{"$f":"Számítások!AN25","v":""}]
[null,null,{"$f":"Számítások!C26","v":""},{"$f":"Számítások!AL26","v":""},{"$f":"Számítások!AM26","v":""},{"$f":"IFERROR(E27*Beállítások!D29/SUM(táblázatTantárgyak[Kreditóraszám]),\"\")","v":""},{"$f":"Számítások!AN26","v":""}]
[null,null,{"$f":"Számítások!C27","v":""},{"$f":"Számítások!AL27","v":""},{"$f":"Számítások!AM27","v":""},{"$f":"IFERROR(E28*Beállítások!D30/SUM(táblázatTantárgyak[Kreditóraszám]),\"\")","v":""},{"$f":"Számítások!AN27","v":""}]
[null,null,{"$f":"Számítások!C28","v":""},{"$f":"Számítások!AL28","v":""},{"$f":"Számítások!AM28","v":""},{"$f":"IFERROR(E29*Beállítások!D31/SUM(táblázatTantárgyak[Kreditóraszám]),\"\")","v":""},{"$f":"Számítások!AN28","v":""}]
[null,null,{"$f":"Számítások!C29","v":""},{"$f":"Számítások!AL29","v":""},{"$f":"Számítások!AM29","v":""},{"$f":"IFERROR(E30*Beállítások!D32/SUM(táblázatTantárgyak[Kreditóraszám]),\"\")","v":""},{"$f":"Számítások!AN29","v":""}]
[null,null,{"$f":"Számítások!C30","v":""},{"$f":"Számítások!AL30","v":""},{"$f":"Számítások!AM30","v":""},{"$f":"IFERROR(E31*Beállítások!D33/SUM(táblázatTantárgyak[Kreditóraszám]),\"\")","v":""},{"$f":"Számítások!AN30","v":""}]

{"sheet":"Beállítások","index":2,"n_rows":15,"n_cols":16,"rows_kept":15,"merged":[[5,2,5,15]]}
[null,"Beállítások"]
[null,null,"Pontszámok és átlagok megfeleltetése"]
[null,null,"Százalék",{"v":0,"d":"0%"},{"v":0.6,"d":"60%"},{"v":0.63,"d":"63%"},{"v":0.67,"d":"67%"},{"v":0.7,"d":"70%"},{"v":0.73,"d":"73%"},{"v":0.77,"d":"77%"},{"v":0.8,"d":"80%"},{"v":0.83,"d":"83%"},{"v":0.87,"d":"87%"},{"v":0.9,"d":"90%"},{"v":0.93,"d":"93%"},{"v":0.97,"d":"97%"}]
[null,null,"Betűvel","F","D-","D","D+","C-","C","C+","B-","B","B+","A-","A","A+"]
[null,null,"Átlag",0,0.67,1,1.33,1.67,2,2.33,2.67,3,3.33,3.67,4,4]
[]
[null,null,"Maximum 25 tantárgy súlyozott pontszáma"]
[null,null,"Saját tantárgyak","Kreditóraszám","Házi feladat","Dolgozat","Teszt","Kiselőadás","Zárthelyi","Záróvizsga","Egyéb","% összesen"]
[null,null,"Modern francia",{"v":3,"d":"3.0"},{"v":0.1,"d":"10%"},{"v":0.15,"d":"15%"},{"v":0.15,"d":"15%"},{"v":0.1,"d":"10%"},{"v":0.2,"d":"20%"},{"v":0.3,"d":"30%"},null,{"$f":"SUM(táblázatTantárgyak[[#This Row],[Házi feladat]:[Egyéb]])","v":{"v":1,"d":"100%"}}]
[null,null,"Elméleti fizika",{"v":3,"d":"3.0"},{"v":0.15,"d":"15%"},{"v":0.15,"d":"15%"},{"v":0.1,"d":"10%"},{"v":0.1,"d":"10%"},{"v":0.15,"d":"15%"},{"v":0.3,"d":"30%"},{"v":0.05,"d":"5%"},{"$f":"SUM(táblázatTantárgyak[[#This Row],[Házi feladat]:[Egyéb]])","v":{"v":1,"d":"100%"}}]
[null,null,"Matematika 1",{"v":4,"d":"4.0"},{"v":0.1,"d":"10%"},{"v":0.15,"d":"15%"},{"v":0.15,"d":"15%"},{"v":0.1,"d":"10%"},{"v":0.2,"d":"20%"},{"v":0.3,"d":"30%"},null,{"$f":"SUM(táblázatTantárgyak[[#This Row],[Házi feladat]:[Egyéb]])","v":{"v":1,"d":"100%"}}]
[null,null,"Matematika 2",{"v":4,"d":"4.0"},{"v":0.15,"d":"15%"},{"v":0.15,"d":"15%"},{"v":0.1,"d":"10%"},{"v":0.1,"d":"10%"},{"v":0.15,"d":"15%"},{"v":0.3,"d":"30%"},{"v":0.05,"d":"5%"},{"$f":"SUM(táblázatTantárgyak[[#This Row],[Házi feladat]:[Egyéb]])","v":{"v":1,"d":"100%"}}]
[null,null,"Haladó Java-programozás",{"v":5,"d":"5.0"},{"v":0.15,"d":"15%"},{"v":0.15,"d":"15%"},{"v":0.1,"d":"10%"},{"v":0.1,"d":"10%"},{"v":0.2,"d":"20%"},{"v":0.3,"d":"30%"},null,{"$f":"SUM(táblázatTantárgyak[[#This Row],[Házi feladat]:[Egyéb]])","v":{"v":1,"d":"100%"}}]
[null,null,"Spanyol",{"v":3,"d":"3.0"},{"v":0.1,"d":"10%"},{"v":0.15,"d":"15%"},{"v":0.17,"d":"17%"},{"v":0.13,"d":"13%"},{"v":0.2,"d":"20%"},{"v":0.2,"d":"20%"},{"v":0.05,"d":"5%"},{"$f":"SUM(táblázatTantárgyak[[#This Row],[Házi feladat]:[Egyéb]])","v":{"v":1,"d":"100%"}}]
[null,null,"Fogalmazás",{"v":2,"d":"2.0"},{"v":0.15,"d":"15%"},{"v":0.15,"d":"15%"},{"v":0.12,"d":"12%"},{"v":0.15,"d":"15%"},{"v":0.15,"d":"15%"},{"v":0.25,"d":"25%"},{"v":0.03,"d":"3%"},{"$f":"SUM(táblázatTantárgyak[[#This Row],[Házi feladat]:[Egyéb]])","v":{"v":1,"d":"100%"}}]

{"sheet":"Számítások","index":3,"n_rows":657,"n_cols":40,"rows_kept":657,"hidden":true}
[null,"Számítások"]
[null,null,"Ez a munkalap kiszámítja az osztályzatokat és az átlagot. Maradjon rejtve. A munkalap bármilyen módosítása hibát okoz."]
[]
[null,null,"Aktuális tantárgylista","Pontszám (összesen 1)",{"$nulls":24},"Osztályzatszámítás"]
[null,null,"Tantárgy",1,2,3,4,5,6,7,8,9,10,11,12,13,14,15,16,17,18,19,20,21,22,23,24,25,{"$f":"táblázatTantárgyak[[#Headers],[Házi feladat]]","v":"Házi feladat"},{"$f":"táblázatTantárgyak[[#Headers],[Dolgozat]]","v":"Dolgozat"},{"$f":"táblázatTantárgyak[[#Headers],[Teszt]]","v":"Teszt"},{"$f":"táblázatTantárgyak[[#Headers],[Kiselőadás]]","v":"Kiselőadás"},{"$f":"táblázatTantárgyak[[#Headers],[Zárthelyi]]","v":"Zárthelyi"},{"$f":"táblázatTantárgyak[[#Headers],[Záróvizsga]]","v":"Záróvizsga"},{"$f":"táblázatTantárgyak[[#Headers],[Egyéb]]","v":"Egyéb"},"Összesen","Elérhető összpontszám","Teljes %","Pontszám","Betűvel"]
[null,null,{"$f":"IF(Beállítások!C9=\"\",\"\",Beállítások!C9)","v":"Modern francia"},{"$f":"IFERROR(INDEX(táblázatOsztályPontszámok[],MATCH($C6:$C30&D$5:AB$5,Számítások!$C$33:$C$657,0),4),\"\")","v":{"v":0.8,"d":"80%"}},{"v":0.9,"d":"90%"},{"v":0.8,"d":"80%"},"","","","","","","","","","","","","","","","","","","","","","",{"$f":"IFERROR(AVERAGEIFS(táblázatOsztályPontszámok[Pontszám],táblázatOsztályPontszámok[Tantárgy],Számítások!$C6,táblázatOsztályPontszámok[Típus],Számítások!AC$5)*Beállítások!E9,\"\")","v":0.08333333333333334},{"$f":"IFERROR(AVERAGEIFS(táblázatOsztályPontszámok[Pontszám],táblázatOsztályPontszámok[Tantárgy],Számítások!$C6,táblázatOsztályPontszámok[Típus],Számítások!AD$5)*Beállítások!F9,\"\")","v":""},{"$f":"IFERROR(AVERAGEIFS(táblázatOsztályPontszámok[Pontszám],táblázatOsztályPontszámok[Tantárgy],Számítások!$C6,táblázatOsztályPontszámok[Típus],Számítások!AE$5)*Beállítások!G9,\"\")","v":""},{"$f":"IFERROR(AVERAGEIFS(táblázatOsztályPontszámok[Pontszám],táblázatOsztályPontszámok[Tantárgy],Számítások!$C6,táblázatOsztályPontszámok[Típus],Számítások!AF$5)*Beállítások!H9,\"\")","v":""},{"$f":"IFERROR(AVERAGEIFS(táblázatOsztályPontszámok[Pontszám],táblázatOsztályPontszámok[Tantárgy],Számítások!$C6,táblázatOsztályPontszámok[Típus],Számítások!AG$5)*Beállítások!I9,\"\")","v":""},{"$f":"IFERROR(AVERAGEIFS(táblázatOsztályPontszámok[Pontszám],táblázatOsztályPontszámok[Tantárgy],Számítások!$C6,táblázatOsztályPontszámok[Típus],Számítások!AH$5)*Beállítások!J9,\"\")","v":""},{"$f":"IFERROR(AVERAGEIFS(táblázatOsztályPontszámok[Pontszám],táblázatOsztályPontszámok[Tantárgy],Számítások!$C6,táblázatOsztályPontszámok[Típus],Számítások!AI$5)*Beállítások!K9,\"\")","v":""},{"$f":"SUM(AC6:AI6)","v":0.08333333333333334},{"$f":"SUMIFS(Beállítások!E9:K9,Számítások!AC6:AI6,\">0\")","v":0.1},{"$f":"IFERROR(AJ6/AK6,\"\")","v":{"v":0.8333333333333334,"d":"83%"}},{"$f":"IFERROR(HLOOKUP(AL6,listaÁtlagMegfeleltetés,3),\"\")","v":3},{"$f":"IFERROR(HLOOKUP(AL6,listaÁtlagMegfeleltetés,2),\"\")","v":"B"}]
[null,null,{"$f":"IF(Beállítások!C10=\"\",\"\",Beállítások!C10)","v":"Elméleti fizika"},{"v":0.95,"d":"95%"},"","","","","","","","","","","","","","","","","","","","","","","","",{"$f":"IFERROR(AVERAGEIFS(táblázatOsztályPontszámok[Pontszám],táblázatOsztályPontszámok[Tantárgy],Számítások!$C7,táblázatOsztályPontszámok[Típus],Számítások!AC$5)*Beállítások!E10,\"\")","v":0.1425},{"$f":"IFERROR(AVERAGEIFS(táblázatOsztályPontszámok[Pontszám],táblázatOsztályPontszámok[Tantárgy],Számítások!$C7,táblázatOsztályPontszámok[Típus],Számítások!AD$5)*Beállítások!F10,\"\")","v":""},{"$f":"IFERROR(AVERAGEIFS(táblázatOsztályPontszámok[Pontszám],táblázatOsztályPontszámok[Tantárgy],Számítások!$C7,táblázatOsztályPontszámok[Típus],Számítások!AE$5)*Beállítások!G10,\"\")","v":""},{"$f":"IFERROR(AVERAGEIFS(táblázatOsztályPontszámok[Pontszám],táblázatOsztályPontszámok[Tantárgy],Számítások!$C7,táblázatOsztályPontszámok[Típus],Számítások!AF$5)*Beállítások!H10,\"\")","v":""},{"$f":"IFERROR(AVERAGEIFS(táblázatOsztályPontszámok[Pontszám],táblázatOsztályPontszámok[Tantárgy],Számítások!$C7,táblázatOsztályPontszámok[Típus],Számítások!AG$5)*Beállítások!I10,\"\")","v":""},{"$f":"IFERROR(AVERAGEIFS(táblázatOsztályPontszámok[Pontszám],táblázatOsztályPontszámok[Tantárgy],Számítások!$C7,táblázatOsztályPontszámok[Típus],Számítások!AH$5)*Beállítások!J10,\"\")","v":""},{"$f":"IFERROR(AVERAGEIFS(táblázatOsztályPontszámok[Pontszám],táblázatOsztályPontszámok[Tantárgy],Számítások!$C7,táblázatOsztályPontszámok[Típus],Számítások!AI$5)*Beállítások!K10,\"\")","v":""},{"$f":"SUM(AC7:AI7)","v":0.1425},{"$f":"SUMIFS(Beállítások!E10:K10,Számítások!AC7:AI7,\">0\")","v":0.15},{"$f":"IFERROR(AJ7/AK7,\"\")","v":{"v":0.95,"d":"95%"}},4,"A"]
[null,null,{"$f":"IF(Beállítások!C11=\"\",\"\",Beállítások!C11)","v":"Matematika 1"},{"v":0.8,"d":"80%"},{"v":0.8,"d":"80%"},"","","","","","","","","","","","","","","","","","","","","","","",{"$f":"IFERROR(AVERAGEIFS(táblázatOsztályPontszámok[Pontszám],táblázatOsztályPontszámok[Tantárgy],Számítások!$C8,táblázatOsztályPontszámok[Típus],Számítások!AC$5)*Beállítások!E11,\"\")","v":0.08000000000000002},{"$f":"IFERROR(AVERAGEIFS(táblázatOsztályPontszámok[Pontszám],táblázatOsztályPontszámok[Tantárgy],Számítások!$C8,táblázatOsztályPontszámok[Típus],Számítások!AD$5)*Beállítások!F11,\"\")","v":""},{"$f":"IFERROR(AVERAGEIFS(táblázatOsztályPontszámok[Pontszám],táblázatOsztályPontszámok[Tantárgy],Számítások!$C8,táblázatOsztályPontszámok[Típus],Számítások!AE$5)*Beállítások!G11,\"\")","v":""},{"$f":"IFERROR(AVERAGEIFS(táblázatOsztályPontszámok[Pontszám],táblázatOsztályPontszámok[Tantárgy],Számítások!$C8,táblázatOsztályPontszámok[Típus],Számítások!AF$5)*Beállítások!H11,\"\")","v":""},{"$f":"IFERROR(AVERAGEIFS(táblázatOsztályPontszámok[Pontszám],táblázatOsztályPontszámok[Tantárgy],Számítások!$C8,táblázatOsztályPontszámok[Típus],Számítások!AG$5)*Beállítások!I11,\"\")","v":""},{"$f":"IFERROR(AVERAGEIFS(táblázatOsztályPontszámok[Pontszám],táblázatOsztályPontszámok[Tantárgy],Számítások!$C8,táblázatOsztályPontszámok[Típus],Számítások!AH$5)*Beállítások!J11,\"\")","v":""},{"$f":"IFERROR(AVERAGEIFS(táblázatOsztályPontszámok[Pontszám],táblázatOsztályPontszámok[Tantárgy],Számítások!$C8,táblázatOsztályPontszámok[Típus],Számítások!AI$5)*Beállítások!K11,\"\")","v":""},0.08000000000000002,{"$f":"SUMIFS(Beállítások!E11:K11,Számítások!AC8:AI8,\">0\")","v":0.1},{"v":0.8000000000000002,"d":"80%"},2.67,"B-"]
[null,null,{"$f":"IF(Beállítások!C12=\"\",\"\",Beállítások!C12)","v":"Matematika 2"},{"v":0.85,"d":"85%"},{"v":0.95,"d":"95%"},"","","","","","","","","","","","","","","","","","","","","","","",{"$f":"IFERROR(AVERAGEIFS(táblázatOsztályPontszámok[Pontszám],táblázatOsztályPontszámok[Tantárgy],Számítások!$C9,táblázatOsztályPontszámok[Típus],Számítások!AC$5)*Beállítások!E12,\"\")","v":0.1275},{"$f":"IFERROR(AVERAGEIFS(táblázatOsztályPontszámok[Pontszám],táblázatOsztályPontszámok[Tantárgy],Számítások!$C9,táblázatOsztályPontszámok[Típus],Számítások!AD$5)*Beállítások!F12,\"\")","v":""},{"$f":"IFERROR(AVERAGEIFS(táblázatOsztályPontszámok[Pontszám],táblázatOsztályPontszámok[Tantárgy],Számítások!$C9,táblázatOsztályPontszámok[Típus],Számítások!AE$5)*Beállítások!G12,\"\")","v":0.095},{"$f":"IFERROR(AVERAGEIFS(táblázatOsztályPontszámok[Pontszám],táblázatOsztályPontszámok[Tantárgy],Számítások!$C9,táblázatOsztályPontszámok[Típus],Számítások!AF$5)*Beállítások!H12,\"\")","v":""},{"$f":"IFERROR(AVERAGEIFS(táblázatOsztályPontszámok[Pontszám],táblázatOsztályPontszámok[Tantárgy],Számítások!$C9,táblázatOsztályPontszámok[Típus],Számítások!AG$5)*Beállítások!I12,\"\")","v":""},{"$f":"IFERROR(AVERAGEIFS(táblázatOsztályPontszámok[Pontszám],táblázatOsztályPontszámok[Tantárgy],Számítások!$C9,táblázatOsztályPontszámok[Típus],Számítások!AH$5)*Beállítások!J12,\"\")","v":""},{"$f":"IFERROR(AVERAGEIFS(táblázatOsztályPontszámok[Pontszám],táblázatOsztályPontszámok[Tantárgy],Számítások!$C9,táblázatOsztályPontszámok[Típus],Számítások!AI$5)*Beállítások!K12,\"\")","v":""},0.2225,{"$f":"SUMIFS(Beállítások!E12:K12,Számítások!AC9:AI9,\">0\")","v":0.25},{"v":0.89,"d":"89%"},3.33,"B+"]
[null,null,{"$f":"IF(Beállítások!C13=\"\",\"\",Beállítások!C13)","v":"Haladó Java-programozás"},{"v":0.75,"d":"75%"},"","","","","","","","","","","","","","","","","","","","","","","","",{"$f":"IFERROR(AVERAGEIFS(táblázatOsztályPontszámok[Pontszám],táblázatOsztályPontszámok[Tantárgy],Számítások!$C10,táblázatOsztályPontszámok[Típus],Számítások!AC$5)*Beállítások!E13,\"\")","v":""},{"$f":"IFERROR(AVERAGEIFS(táblázatOsztályPontszámok[Pontszám],táblázatOsztályPontszámok[Tantárgy],Számítások!$C10,táblázatOsztályPontszámok[Típus],Számítások!AD$5)*Beállítások!F13,\"\")","v":""},{"$f":"IFERROR(AVERAGEIFS(táblázatOsztályPontszámok[Pontszám],táblázatOsztályPontszámok[Tantárgy],Számítások!$C10,táblázatOsztályPontszámok[Típus],Számítások!AE$5)*Beállítások!G13,\"\")","v":""},{"$f":"IFERROR(AVERAGEIFS(táblázatOsztályPontszámok[Pontszám],táblázatOsztályPontszámok[Tantárgy],Számítások!$C10,táblázatOsztályPontszámok[Típus],Számítások!AF$5)*Beállítások!H13,\"\")","v":""},{"$f":"IFERROR(AVERAGEIFS(táblázatOsztályPontszámok[Pontszám],táblázatOsztályPontszámok[Tantárgy],Számítások!$C10,táblázatOsztályPontszámok[Típus],Számítások!AG$5)*Beállítások!I13,\"\")","v":0.15000000000000002},{"$f":"IFERROR(AVERAGEIFS(táblázatOsztályPontszámok[Pontszám],táblázatOsztályPontszámok[Tantárgy],Számítások!$C10,táblázatOsztályPontszámok[Típus],Számítások!AH$5)*Beállítások!J13,\"\")","v":""},{"$f":"IFERROR(AVERAGEIFS(táblázatOsztályPontszámok[Pontszám],táblázatOsztályPontszámok[Tantárgy],Számítások!$C10,táblázatOsztályPontszámok[Típus],Számítások!AI$5)*Beállítások!K13,\"\")","v":""},0.15000000000000002,{"$f":"SUMIFS(Beállítások!E13:K13,Számítások!AC10:AI10,\">0\")","v":0.2},{"v":0.7500000000000001,"d":"75%"},2,"C"]
[null,null,{"$f":"IF(Beállítások!C14=\"\",\"\",Beállítások!C14)","v":"Spanyol"},{"v":0.5,"d":"50%"},"","","","","","","","","","","","","","","","","","","","","","","","",{"$f":"IFERROR(AVERAGEIFS(táblázatOsztályPontszámok[Pontszám],táblázatOsztályPontszámok[Tantárgy],Számítások!$C11,táblázatOsztályPontszámok[Típus],Számítások!AC$5)*Beállítások!E14,\"\")","v":0.05},{"$f":"IFERROR(AVERAGEIFS(táblázatOsztályPontszámok[Pontszám],táblázatOsztályPontszámok[Tantárgy],Számítások!$C11,táblázatOsztályPontszámok[Típus],Számítások!AD$5)*Beállítások!F14,\"\")","v":""},{"$f":"IFERROR(AVERAGEIFS(táblázatOsztályPontszámok[Pontszám],táblázatOsztályPontszámok[Tantárgy],Számítások!$C11,táblázatOsztályPontszámok[Típus],Számítások!AE$5)*Beállítások!G14,\"\")","v":""},{"$f":"IFERROR(AVERAGEIFS(táblázatOsztályPontszámok[Pontszám],táblázatOsztályPontszámok[Tantárgy],Számítások!$C11,táblázatOsztályPontszámok[Típus],Számítások!AF$5)*Beállítások!H14,\"\")","v":""},{"$f":"IFERROR(AVERAGEIFS(táblázatOsztályPontszámok[Pontszám],táblázatOsztályPontszámok[Tantárgy],Számítások!$C11,táblázatOsztályPontszámok[Típus],Számítások!AG$5)*Beállítások!I14,\"\")","v":""},{"$f":"IFERROR(AVERAGEIFS(táblázatOsztályPontszámok[Pontszám],táblázatOsztályPontszámok[Tantárgy],Számítások!$C11,táblázatOsztályPontszámok[Típus],Számítások!AH$5)*Beállítások!J14,\"\")","v":""},{"$f":"IFERROR(AVERAGEIFS(táblázatOsztályPontszámok[Pontszám],táblázatOsztályPontszámok[Tantárgy],Számítások!$C11,táblázatOsztályPontszámok[Típus],Számítások!AI$5)*Beállítások!K14,\"\")","v":""},0.05,{"$f":"SUMIFS(Beállítások!E14:K14,Számítások!AC11:AI11,\">0\")","v":0.1},{"v":0.5,"d":"50%"},0,"F"]
[null,null,{"$f":"IF(Beállítások!C15=\"\",\"\",Beállítások!C15)","v":"Fogalmazás"},{"v":0.95,"d":"95%"},"","","","","","","","","","","","","","","","","","","","","","","","",{"$f":"IFERROR(AVERAGEIFS(táblázatOsztályPontszámok[Pontszám],táblázatOsztályPontszámok[Tantárgy],Számítások!$C12,táblázatOsztályPontszámok[Típus],Számítások!AC$5)*Beállítások!E15,\"\")","v":""},{"$f":"IFERROR(AVERAGEIFS(táblázatOsztályPontszámok[Pontszám],táblázatOsztályPontszámok[Tantárgy],Számítások!$C12,táblázatOsztályPontszámok[Típus],Számítások!AD$5)*Beállítások!F15,\"\")","v":0.1425},{"$f":"IFERROR(AVERAGEIFS(táblázatOsztályPontszámok[Pontszám],táblázatOsztályPontszámok[Tantárgy],Számítások!$C12,táblázatOsztályPontszámok[Típus],Számítások!AE$5)*Beállítások!G15,\"\")","v":""},{"$f":"IFERROR(AVERAGEIFS(táblázatOsztályPontszámok[Pontszám],táblázatOsztályPontszámok[Tantárgy],Számítások!$C12,táblázatOsztályPontszámok[Típus],Számítások!AF$5)*Beállítások!H15,\"\")","v":""},{"$f":"IFERROR(AVERAGEIFS(táblázatOsztályPontszámok[Pontszám],táblázatOsztályPontszámok[Tantárgy],Számítások!$C12,táblázatOsztályPontszámok[Típus],Számítások!AG$5)*Beállítások!I15,\"\")","v":""},{"$f":"IFERROR(AVERAGEIFS(táblázatOsztályPontszámok[Pontszám],táblázatOsztályPontszámok[Tantárgy],Számítások!$C12,táblázatOsztályPontszámok[Típus],Számítások!AH$5)*Beállítások!J15,\"\")","v":""},{"$f":"IFERROR(AVERAGEIFS(táblázatOsztályPontszámok[Pontszám],táblázatOsztályPontszámok[Tantárgy],Számítások!$C12,táblázatOsztályPontszámok[Típus],Számítások!AI$5)*Beállítások!K15,\"\")","v":""},0.1425,{"$f":"SUMIFS(Beállítások!E15:K15,Számítások!AC12:AI12,\">0\")","v":0.15},{"v":0.95,"d":"95%"},4,"A"]
[null,null,{"$f":"IF(Beállítások!C16=\"\",\"\",Beállítások!C16)","v":""},"","","","","","","","","","","","","","","","","","","","","","","","","",{"$f":"IFERROR(AVERAGEIFS(táblázatOsztályPontszámok[Pontszám],táblázatOsztályPontszámok[Tantárgy],Számítások!$C13,táblázatOsztályPontszámok[Típus],Számítások!AC$5)*Beállítások!E16,\"\")","v":""},{"$f":"IFERROR(AVERAGEIFS(táblázatOsztályPontszámok[Pontszám],táblázatOsztályPontszámok[Tantárgy],Számítások!$C13,táblázatOsztályPontszámok[Típus],Számítások!AD$5)*Beállítások!F16,\"\")","v":""},{"$f":"IFERROR(AVERAGEIFS(táblázatOsztályPontszámok[Pontszám],táblázatOsztályPontszámok[Tantárgy],Számítások!$C13,táblázatOsztályPontszámok[Típus],Számítások!AE$5)*Beállítások!G16,\"\")","v":""},{"$f":"IFERROR(AVERAGEIFS(táblázatOsztályPontszámok[Pontszám],táblázatOsztályPontszámok[Tantárgy],Számítások!$C13,táblázatOsztályPontszámok[Típus],Számítások!AF$5)*Beállítások!H16,\"\")","v":""},{"$f":"IFERROR(AVERAGEIFS(táblázatOsztályPontszámok[Pontszám],táblázatOsztályPontszámok[Tantárgy],Számítások!$C13,táblázatOsztályPontszámok[Típus],Számítások!AG$5)*Beállítások!I16,\"\")","v":""},{"$f":"IFERROR(AVERAGEIFS(táblázatOsztályPontszámok[Pontszám],táblázatOsztályPontszámok[Tantárgy],Számítások!$C13,táblázatOsztályPontszámok[Típus],Számítások!AH$5)*Beállítások!J16,\"\")","v":""},{"$f":"IFERROR(AVERAGEIFS(táblázatOsztályPontszámok[Pontszám],táblázatOsztályPontszámok[Tantárgy],Számítások!$C13,táblázatOsztályPontszámok[Típus],Számítások!AI$5)*Beállítások!K16,\"\")","v":""},{"$f":"SUM(AC13:AI13)","v":0},{"$f":"SUMIFS(Beállítások!E16:K16,Számítások!AC13:AI13,\">0\")","v":0},{"$f":"IFERROR(AJ13/AK13,\"\")","v":""},"",""]
[null,null,{"$f":"IF(Beállítások!C17=\"\",\"\",Beállítások!C17)","v":""},"","","","","","","","","","","","","","","","","","","","","","","","","",{"$f":"IFERROR(AVERAGEIFS(táblázatOsztályPontszámok[Pontszám],táblázatOsztályPontszámok[Tantárgy],Számítások!$C14,táblázatOsztályPontszámok[Típus],Számítások!AC$5)*Beállítások!E17,\"\")","v":""},{"$f":"IFERROR(AVERAGEIFS(táblázatOsztályPontszámok[Pontszám],táblázatOsztályPontszámok[Tantárgy],Számítások!$C14,táblázatOsztályPontszámok[Típus],Számítások!AD$5)*Beállítások!F17,\"\")","v":""},{"$f":"IFERROR(AVERAGEIFS(táblázatOsztályPontszámok[Pontszám],táblázatOsztályPontszámok[Tantárgy],Számítások!$C14,táblázatOsztályPontszámok[Típus],Számítások!AE$5)*Beállítások!G17,\"\")","v":""},{"$f":"IFERROR(AVERAGEIFS(táblázatOsztályPontszámok[Pontszám],táblázatOsztályPontszámok[Tantárgy],Számítások!$C14,táblázatOsztályPontszámok[Típus],Számítások!AF$5)*Beállítások!H17,\"\")","v":""},{"$f":"IFERROR(AVERAGEIFS(táblázatOsztályPontszámok[Pontszám],táblázatOsztályPontszámok[Tantárgy],Számítások!$C14,táblázatOsztályPontszámok[Típus],Számítások!AG$5)*Beállítások!I17,\"\")","v":""},{"$f":"IFERROR(AVERAGEIFS(táblázatOsztályPontszámok[Pontszám],táblázatOsztályPontszámok[Tantárgy],Számítások!$C14,táblázatOsztályPontszámok[Típus],Számítások!AH$5)*Beállítások!J17,\"\")","v":""},{"$f":"IFERROR(AVERAGEIFS(táblázatOsztályPontszámok[Pontszám],táblázatOsztályPontszámok[Tantárgy],Számítások!$C14,táblázatOsztályPontszámok[Típus],Számítások!AI$5)*Beállítások!K17,\"\")","v":""},0,{"$f":"SUMIFS(Beállítások!E17:K17,Számítások!AC14:AI14,\">0\")","v":0},"","",""]
[null,null,{"$f":"IF(Beállítások!C18=\"\",\"\",Beállítások!C18)","v":""},"","","","","","","","","","","","","","","","","","","","","","","","","",{"$f":"IFERROR(AVERAGEIFS(táblázatOsztályPontszámok[Pontszám],táblázatOsztályPontszámok[Tantárgy],Számítások!$C15,táblázatOsztályPontszámok[Típus],Számítások!AC$5)*Beállítások!E18,\"\")","v":""},{"$f":"IFERROR(AVERAGEIFS(táblázatOsztályPontszámok[Pontszám],táblázatOsztályPontszámok[Tantárgy],Számítások!$C15,táblázatOsztályPontszámok[Típus],Számítások!AD$5)*Beállítások!F18,\"\")","v":""},{"$f":"IFERROR(AVERAGEIFS(táblázatOsztályPontszámok[Pontszám],táblázatOsztályPontszámok[Tantárgy],Számítások!$C15,táblázatOsztályPontszámok[Típus],Számítások!AE$5)*Beállítások!G18,\"\")","v":""},{"$f":"IFERROR(AVERAGEIFS(táblázatOsztályPontszámok[Pontszám],táblázatOsztályPontszámok[Tantárgy],Számítások!$C15,táblázatOsztályPontszámok[Típus],Számítások!AF$5)*Beállítások!H18,\"\")","v":""},{"$f":"IFERROR(AVERAGEIFS(táblázatOsztályPontszámok[Pontszám],táblázatOsztályPontszámok[Tantárgy],Számítások!$C15,táblázatOsztályPontszámok[Típus],Számítások!AG$5)*Beállítások!I18,\"\")","v":""},{"$f":"IFERROR(AVERAGEIFS(táblázatOsztályPontszámok[Pontszám],táblázatOsztályPontszámok[Tantárgy],Számítások!$C15,táblázatOsztályPontszámok[Típus],Számítások!AH$5)*Beállítások!J18,\"\")","v":""},{"$f":"IFERROR(AVERAGEIFS(táblázatOsztályPontszámok[Pontszám],táblázatOsztályPontszámok[Tantárgy],Számítások!$C15,táblázatOsztályPontszámok[Típus],Számítások!AI$5)*Beállítások!K18,\"\")","v":""},0,{"$f":"SUMIFS(Beállítások!E18:K18,Számítások!AC15:AI15,\">0\")","v":0},"","",""]
[null,null,{"$f":"IF(Beállítások!C19=\"\",\"\",Beállítások!C19)","v":""},"","","","","","","","","","","","","","","","","","","","","","","","","",{"$f":"IFERROR(AVERAGEIFS(táblázatOsztályPontszámok[Pontszám],táblázatOsztályPontszámok[Tantárgy],Számítások!$C16,táblázatOsztályPontszámok[Típus],Számítások!AC$5)*Beállítások!E19,\"\")","v":""},{"$f":"IFERROR(AVERAGEIFS(táblázatOsztályPontszámok[Pontszám],táblázatOsztályPontszámok[Tantárgy],Számítások!$C16,táblázatOsztályPontszámok[Típus],Számítások!AD$5)*Beállítások!F19,\"\")","v":""},{"$f":"IFERROR(AVERAGEIFS(táblázatOsztályPontszámok[Pontszám],táblázatOsztályPontszámok[Tantárgy],Számítások!$C16,táblázatOsztályPontszámok[Típus],Számítások!AE$5)*Beállítások!G19,\"\")","v":""},{"$f":"IFERROR(AVERAGEIFS(táblázatOsztályPontszámok[Pontszám],táblázatOsztályPontszámok[Tantárgy],Számítások!$C16,táblázatOsztályPontszámok[Típus],Számítások!AF$5)*Beállítások!H19,\"\")","v":""},{"$f":"IFERROR(AVERAGEIFS(táblázatOsztályPontszámok[Pontszám],táblázatOsztályPontszámok[Tantárgy],Számítások!$C16,táblázatOsztályPontszámok[Típus],Számítások!AG$5)*Beállítások!I19,\"\")","v":""},{"$f":"IFERROR(AVERAGEIFS(táblázatOsztályPontszámok[Pontszám],táblázatOsztályPontszámok[Tantárgy],Számítások!$C16,táblázatOsztályPontszámok[Típus],Számítások!AH$5)*Beállítások!J19,\"\")","v":""},{"$f":"IFERROR(AVERAGEIFS(táblázatOsztályPontszámok[Pontszám],táblázatOsztályPontszámok[Tantárgy],Számítások!$C16,táblázatOsztályPontszámok[Típus],Számítások!AI$5)*Beállítások!K19,\"\")","v":""},0,{"$f":"SUMIFS(Beállítások!E19:K19,Számítások!AC16:AI16,\">0\")","v":0},"","",""]
[null,null,{"$f":"IF(Beállítások!C20=\"\",\"\",Beállítások!C20)","v":""},"","","","","","","","","","","","","","","","","","","","","","","","","",{"$f":"IFERROR(AVERAGEIFS(táblázatOsztályPontszámok[Pontszám],táblázatOsztályPontszámok[Tantárgy],Számítások!$C17,táblázatOsztályPontszámok[Típus],Számítások!AC$5)*Beállítások!E20,\"\")","v":""},{"$f":"IFERROR(AVERAGEIFS(táblázatOsztályPontszámok[Pontszám],táblázatOsztályPontszámok[Tantárgy],Számítások!$C17,táblázatOsztályPontszámok[Típus],Számítások!AD$5)*Beállítások!F20,\"\")","v":""},{"$f":"IFERROR(AVERAGEIFS(táblázatOsztályPontszámok[Pontszám],táblázatOsztályPontszámok[Tantárgy],Számítások!$C17,táblázatOsztályPontszámok[Típus],Számítások!AE$5)*Beállítások!G20,\"\")","v":""},{"$f":"IFERROR(AVERAGEIFS(táblázatOsztályPontszámok[Pontszám],táblázatOsztályPontszámok[Tantárgy],Számítások!$C17,táblázatOsztályPontszámok[Típus],Számítások!AF$5)*Beállítások!H20,\"\")","v":""},{"$f":"IFERROR(AVERAGEIFS(táblázatOsztályPontszámok[Pontszám],táblázatOsztályPontszámok[Tantárgy],Számítások!$C17,táblázatOsztályPontszámok[Típus],Számítások!AG$5)*Beállítások!I20,\"\")","v":""},{"$f":"IFERROR(AVERAGEIFS(táblázatOsztályPontszámok[Pontszám],táblázatOsztályPontszámok[Tantárgy],Számítások!$C17,táblázatOsztályPontszámok[Típus],Számítások!AH$5)*Beállítások!J20,\"\")","v":""},{"$f":"IFERROR(AVERAGEIFS(táblázatOsztályPontszámok[Pontszám],táblázatOsztályPontszámok[Tantárgy],Számítások!$C17,táblázatOsztályPontszámok[Típus],Számítások!AI$5)*Beállítások!K20,\"\")","v":""},0,{"$f":"SUMIFS(Beállítások!E20:K20,Számítások!AC17:AI17,\">0\")","v":0},"","",""]
[null,null,{"$f":"IF(Beállítások!C21=\"\",\"\",Beállítások!C21)","v":""},"","","","","","","","","","","","","","","","","","","","","","","","","",{"$f":"IFERROR(AVERAGEIFS(táblázatOsztályPontszámok[Pontszám],táblázatOsztályPontszámok[Tantárgy],Számítások!$C18,táblázatOsztályPontszámok[Típus],Számítások!AC$5)*Beállítások!E21,\"\")","v":""},{"$f":"IFERROR(AVERAGEIFS(táblázatOsztályPontszámok[Pontszám],táblázatOsztályPontszámok[Tantárgy],Számítások!$C18,táblázatOsztályPontszámok[Típus],Számítások!AD$5)*Beállítások!F21,\"\")","v":""},{"$f":"IFERROR(AVERAGEIFS(táblázatOsztályPontszámok[Pontszám],táblázatOsztályPontszámok[Tantárgy],Számítások!$C18,táblázatOsztályPontszámok[Típus],Számítások!AE$5)*Beállítások!G21,\"\")","v":""},{"$f":"IFERROR(AVERAGEIFS(táblázatOsztályPontszámok[Pontszám],táblázatOsztályPontszámok[Tantárgy],Számítások!$C18,táblázatOsztályPontszámok[Típus],Számítások!AF$5)*Beállítások!H21,\"\")","v":""},{"$f":"IFERROR(AVERAGEIFS(táblázatOsztályPontszámok[Pontszám],táblázatOsztályPontszámok[Tantárgy],Számítások!$C18,táblázatOsztályPontszámok[Típus],Számítások!AG$5)*Beállítások!I21,\"\")","v":""},{"$f":"IFERROR(AVERAGEIFS(táblázatOsztályPontszámok[Pontszám],táblázatOsztályPontszámok[Tantárgy],Számítások!$C18,táblázatOsztályPontszámok[Típus],Számítások!AH$5)*Beállítások!J21,\"\")","v":""},{"$f":"IFERROR(AVERAGEIFS(táblázatOsztályPontszámok[Pontszám],táblázatOsztályPontszámok[Tantárgy],Számítások!$C18,táblázatOsztályPontszámok[Típus],Számítások!AI$5)*Beállítások!K21,\"\")","v":""},0,{"$f":"SUMIFS(Beállítások!E21:K21,Számítások!AC18:AI18,\">0\")","v":0},"","",""]
[null,null,{"$f":"IF(Beállítások!C22=\"\",\"\",Beállítások!C22)","v":""},"","","","","","","","","","","","","","","","","","","","","","","","","",{"$f":"IFERROR(AVERAGEIFS(táblázatOsztályPontszámok[Pontszám],táblázatOsztályPontszámok[Tantárgy],Számítások!$C19,táblázatOsztályPontszámok[Típus],Számítások!AC$5)*Beállítások!E22,\"\")","v":""},{"$f":"IFERROR(AVERAGEIFS(táblázatOsztályPontszámok[Pontszám],táblázatOsztályPontszámok[Tantárgy],Számítások!$C19,táblázatOsztályPontszámok[Típus],Számítások!AD$5)*Beállítások!F22,\"\")","v":""},{"$f":"IFERROR(AVERAGEIFS(táblázatOsztályPontszámok[Pontszám],táblázatOsztályPontszámok[Tantárgy],Számítások!$C19,táblázatOsztályPontszámok[Típus],Számítások!AE$5)*Beállítások!G22,\"\")","v":""},{"$f":"IFERROR(AVERAGEIFS(táblázatOsztályPontszámok[Pontszám],táblázatOsztályPontszámok[Tantárgy],Számítások!$C19,táblázatOsztályPontszámok[Típus],Számítások!AF$5)*Beállítások!H22,\"\")","v":""},{"$f":"IFERROR(AVERAGEIFS(táblázatOsztályPontszámok[Pontszám],táblázatOsztályPontszámok[Tantárgy],Számítások!$C19,táblázatOsztályPontszámok[Típus],Számítások!AG$5)*Beállítások!I22,\"\")","v":""},{"$f":"IFERROR(AVERAGEIFS(táblázatOsztályPontszámok[Pontszám],táblázatOsztályPontszámok[Tantárgy],Számítások!$C19,táblázatOsztályPontszámok[Típus],Számítások!AH$5)*Beállítások!J22,\"\")","v":""},{"$f":"IFERROR(AVERAGEIFS(táblázatOsztályPontszámok[Pontszám],táblázatOsztályPontszámok[Tantárgy],Számítások!$C19,táblázatOsztályPontszámok[Típus],Számítások!AI$5)*Beállítások!K22,\"\")","v":""},0,{"$f":"SUMIFS(Beállítások!E22:K22,Számítások!AC19:AI19,\">0\")","v":0},"","",""]
[null,null,{"$f":"IF(Beállítások!C23=\"\",\"\",Beállítások!C23)","v":""},"","","","","","","","","","","","","","","","","","","","","","","","","",{"$f":"IFERROR(AVERAGEIFS(táblázatOsztályPontszámok[Pontszám],táblázatOsztályPontszámok[Tantárgy],Számítások!$C20,táblázatOsztályPontszámok[Típus],Számítások!AC$5)*Beállítások!E23,\"\")","v":""},{"$f":"IFERROR(AVERAGEIFS(táblázatOsztályPontszámok[Pontszám],táblázatOsztályPontszámok[Tantárgy],Számítások!$C20,táblázatOsztályPontszámok[Típus],Számítások!AD$5)*Beállítások!F23,\"\")","v":""},{"$f":"IFERROR(AVERAGEIFS(táblázatOsztályPontszámok[Pontszám],táblázatOsztályPontszámok[Tantárgy],Számítások!$C20,táblázatOsztályPontszámok[Típus],Számítások!AE$5)*Beállítások!G23,\"\")","v":""},{"$f":"IFERROR(AVERAGEIFS(táblázatOsztályPontszámok[Pontszám],táblázatOsztályPontszámok[Tantárgy],Számítások!$C20,táblázatOsztályPontszámok[Típus],Számítások!AF$5)*Beállítások!H23,\"\")","v":""},{"$f":"IFERROR(AVERAGEIFS(táblázatOsztályPontszámok[Pontszám],táblázatOsztályPontszámok[Tantárgy],Számítások!$C20,táblázatOsztályPontszámok[Típus],Számítások!AG$5)*Beállítások!I23,\"\")","v":""},{"$f":"IFERROR(AVERAGEIFS(táblázatOsztályPontszámok[Pontszám],táblázatOsztályPontszámok[Tantárgy],Számítások!$C20,táblázatOsztályPontszámok[Típus],Számítások!AH$5)*Beállítások!J23,\"\")","v":""},{"$f":"IFERROR(AVERAGEIFS(táblázatOsztályPontszámok[Pontszám],táblázatOsztályPontszámok[Tantárgy],Számítások!$C20,táblázatOsztályPontszámok[Típus],Számítások!AI$5)*Beállítások!K23,\"\")","v":""},0,{"$f":"SUMIFS(Beállítások!E23:K23,Számítások!AC20:AI20,\">0\")","v":0},"","",""]
[null,null,{"$f":"IF(Beállítások!C24=\"\",\"\",Beállítások!C24)","v":""},"","","","","","","","","","","","","","","","","","","","","","","","","",{"$f":"IFERROR(AVERAGEIFS(táblázatOsztályPontszámok[Pontszám],táblázatOsztályPontszámok[Tantárgy],Számítások!$C21,táblázatOsztályPontszámok[Típus],Számítások!AC$5)*Beállítások!E24,\"\")","v":""},{"$f":"IFERROR(AVERAGEIFS(táblázatOsztályPontszámok[Pontszám],táblázatOsztályPontszámok[Tantárgy],Számítások!$C21,táblázatOsztályPontszámok[Típus],Számítások!AD$5)*Beállítások!F24,\"\")","v":""},{"$f":"IFERROR(AVERAGEIFS(táblázatOsztályPontszámok[Pontszám],táblázatOsztályPontszámok[Tantárgy],Számítások!$C21,táblázatOsztályPontszámok[Típus],Számítások!AE$5)*Beállítások!G24,\"\")","v":""},{"$f":"IFERROR(AVERAGEIFS(táblázatOsztályPontszámok[Pontszám],táblázatOsztályPontszámok[Tantárgy],Számítások!$C21,táblázatOsztályPontszámok[Típus],Számítások!AF$5)*Beállítások!H24,\"\")","v":""},{"$f":"IFERROR(AVERAGEIFS(táblázatOsztályPontszámok[Pontszám],táblázatOsztályPontszámok[Tantárgy],Számítások!$C21,táblázatOsztályPontszámok[Típus],Számítások!AG$5)*Beállítások!I24,\"\")","v":""},{"$f":"IFERROR(AVERAGEIFS(táblázatOsztályPontszámok[Pontszám],táblázatOsztályPontszámok[Tantárgy],Számítások!$C21,táblázatOsztályPontszámok[Típus],Számítások!AH$5)*Beállítások!J24,\"\")","v":""},{"$f":"IFERROR(AVERAGEIFS(táblázatOsztályPontszámok[Pontszám],táblázatOsztályPontszámok[Tantárgy],Számítások!$C21,táblázatOsztályPontszámok[Típus],Számítások!AI$5)*Beállítások!K24,\"\")","v":""},0,{"$f":"SUMIFS(Beállítások!E24:K24,Számítások!AC21:AI21,\">0\")","v":0},"","",""]
[null,null,{"$f":"IF(Beállítások!C25=\"\",\"\",Beállítások!C25)","v":""},"","","","","","","","","","","","","","","","","","","","","","","","","",{"$f":"IFERROR(AVERAGEIFS(táblázatOsztályPontszámok[Pontszám],táblázatOsztályPontszámok[Tantárgy],Számítások!$C22,táblázatOsztályPontszámok[Típus],Számítások!AC$5)*Beállítások!E25,\"\")","v":""},{"$f":"IFERROR(AVERAGEIFS(táblázatOsztályPontszámok[Pontszám],táblázatOsztályPontszámok[Tantárgy],Számítások!$C22,táblázatOsztályPontszámok[Típus],Számítások!AD$5)*Beállítások!F25,\"\")","v":""},{"$f":"IFERROR(AVERAGEIFS(táblázatOsztályPontszámok[Pontszám],táblázatOsztályPontszámok[Tantárgy],Számítások!$C22,táblázatOsztályPontszámok[Típus],Számítások!AE$5)*Beállítások!G25,\"\")","v":""},{"$f":"IFERROR(AVERAGEIFS(táblázatOsztályPontszámok[Pontszám],táblázatOsztályPontszámok[Tantárgy],Számítások!$C22,táblázatOsztályPontszámok[Típus],Számítások!AF$5)*Beállítások!H25,\"\")","v":""},{"$f":"IFERROR(AVERAGEIFS(táblázatOsztályPontszámok[Pontszám],táblázatOsztályPontszámok[Tantárgy],Számítások!$C22,táblázatOsztályPontszámok[Típus],Számítások!AG$5)*Beállítások!I25,\"\")","v":""},{"$f":"IFERROR(AVERAGEIFS(táblázatOsztályPontszámok[Pontszám],táblázatOsztályPontszámok[Tantárgy],Számítások!$C22,táblázatOsztályPontszámok[Típus],Számítások!AH$5)*Beállítások!J25,\"\")","v":""},{"$f":"IFERROR(AVERAGEIFS(táblázatOsztályPontszámok[Pontszám],táblázatOsztályPontszámok[Tantárgy],Számítások!$C22,táblázatOsztályPontszámok[Típus],Számítások!AI$5)*Beállítások!K25,\"\")","v":""},0,{"$f":"SUMIFS(Beállítások!E25:K25,Számítások!AC22:AI22,\">0\")","v":0},"","",""]
[null,null,{"$f":"IF(Beállítások!C26=\"\",\"\",Beállítások!C26)","v":""},"","","","","","","","","","","","","","","","","","","","","","","","","",{"$f":"IFERROR(AVERAGEIFS(táblázatOsztályPontszámok[Pontszám],táblázatOsztályPontszámok[Tantárgy],Számítások!$C23,táblázatOsztályPontszámok[Típus],Számítások!AC$5)*Beállítások!E26,\"\")","v":""},{"$f":"IFERROR(AVERAGEIFS(táblázatOsztályPontszámok[Pontszám],táblázatOsztályPontszámok[Tantárgy],Számítások!$C23,táblázatOsztályPontszámok[Típus],Számítások!AD$5)*Beállítások!F26,\"\")","v":""},{"$f":"IFERROR(AVERAGEIFS(táblázatOsztályPontszámok[Pontszám],táblázatOsztályPontszámok[Tantárgy],Számítások!$C23,táblázatOsztályPontszámok[Típus],Számítások!AE$5)*Beállítások!G26,\"\")","v":""},{"$f":"IFERROR(AVERAGEIFS(táblázatOsztályPontszámok[Pontszám],táblázatOsztályPontszámok[Tantárgy],Számítások!$C23,táblázatOsztályPontszámok[Típus],Számítások!AF$5)*Beállítások!H26,\"\")","v":""},{"$f":"IFERROR(AVERAGEIFS(táblázatOsztályPontszámok[Pontszám],táblázatOsztályPontszámok[Tantárgy],Számítások!$C23,táblázatOsztályPontszámok[Típus],Számítások!AG$5)*Beállítások!I26,\"\")","v":""},{"$f":"IFERROR(AVERAGEIFS(táblázatOsztályPontszámok[Pontszám],táblázatOsztályPontszámok[Tantárgy],Számítások!$C23,táblázatOsztályPontszámok[Típus],Számítások!AH$5)*Beállítások!J26,\"\")","v":""},{"$f":"IFERROR(AVERAGEIFS(táblázatOsztályPontszámok[Pontszám],táblázatOsztályPontszámok[Tantárgy],Számítások!$C23,táblázatOsztályPontszámok[Típus],Számítások!AI$5)*Beállítások!K26,\"\")","v":""},0,{"$f":"SUMIFS(Beállítások!E26:K26,Számítások!AC23:AI23,\">0\")","v":0},"","",""]
[null,null,{"$f":"IF(Beállítások!C27=\"\",\"\",Beállítások!C27)","v":""},"","","","","","","","","","","","","","","","","","","","","","","","","",{"$f":"IFERROR(AVERAGEIFS(táblázatOsztályPontszámok[Pontszám],táblázatOsztályPontszámok[Tantárgy],Számítások!$C24,táblázatOsztályPontszámok[Típus],Számítások!AC$5)*Beállítások!E27,\"\")","v":""},{"$f":"IFERROR(AVERAGEIFS(táblázatOsztályPontszámok[Pontszám],táblázatOsztályPontszámok[Tantárgy],Számítások!$C24,táblázatOsztályPontszámok[Típus],Számítások!AD$5)*Beállítások!F27,\"\")","v":""},{"$f":"IFERROR(AVERAGEIFS(táblázatOsztályPontszámok[Pontszám],táblázatOsztályPontszámok[Tantárgy],Számítások!$C24,táblázatOsztályPontszámok[Típus],Számítások!AE$5)*Beállítások!G27,\"\")","v":""},{"$f":"IFERROR(AVERAGEIFS(táblázatOsztályPontszámok[Pontszám],táblázatOsztályPontszámok[Tantárgy],Számítások!$C24,táblázatOsztályPontszámok[Típus],Számítások!AF$5)*Beállítások!H27,\"\")","v":""},{"$f":"IFERROR(AVERAGEIFS(táblázatOsztályPontszámok[Pontszám],táblázatOsztályPontszámok[Tantárgy],Számítások!$C24,táblázatOsztályPontszámok[Típus],Számítások!AG$5)*Beállítások!I27,\"\")","v":""},{"$f":"IFERROR(AVERAGEIFS(táblázatOsztályPontszámok[Pontszám],táblázatOsztályPontszámok[Tantárgy],Számítások!$C24,táblázatOsztályPontszámok[Típus],Számítások!AH$5)*Beállítások!J27,\"\")","v":""},{"$f":"IFERROR(AVERAGEIFS(táblázatOsztályPontszámok[Pontszám],táblázatOsztályPontszámok[Tantárgy],Számítások!$C24,táblázatOsztályPontszámok[Típus],Számítások!AI$5)*Beállítások!K27,\"\")","v":""},0,{"$f":"SUMIFS(Beállítások!E27:K27,Számítások!AC24:AI24,\">0\")","v":0},"","",""]
[null,null,{"$f":"IF(Beállítások!C28=\"\",\"\",Beállítások!C28)","v":""},"","","","","","","","","","","","","","","","","","","","","","","","","",{"$f":"IFERROR(AVERAGEIFS(táblázatOsztályPontszámok[Pontszám],táblázatOsztályPontszámok[Tantárgy],Számítások!$C25,táblázatOsztályPontszámok[Típus],Számítások!AC$5)*Beállítások!E28,\"\")","v":""},{"$f":"IFERROR(AVERAGEIFS(táblázatOsztályPontszámok[Pontszám],táblázatOsztályPontszámok[Tantárgy],Számítások!$C25,táblázatOsztályPontszámok[Típus],Számítások!AD$5)*Beállítások!F28,\"\")","v":""},{"$f":"IFERROR(AVERAGEIFS(táblázatOsztályPontszámok[Pontszám],táblázatOsztályPontszámok[Tantárgy],Számítások!$C25,táblázatOsztályPontszámok[Típus],Számítások!AE$5)*Beállítások!G28,\"\")","v":""},{"$f":"IFERROR(AVERAGEIFS(táblázatOsztályPontszámok[Pontszám],táblázatOsztályPontszámok[Tantárgy],Számítások!$C25,táblázatOsztályPontszámok[Típus],Számítások!AF$5)*Beállítások!H28,\"\")","v":""},{"$f":"IFERROR(AVERAGEIFS(táblázatOsztályPontszámok[Pontszám],táblázatOsztályPontszámok[Tantárgy],Számítások!$C25,táblázatOsztályPontszámok[Típus],Számítások!AG$5)*Beállítások!I28,\"\")","v":""},{"$f":"IFERROR(AVERAGEIFS(táblázatOsztályPontszámok[Pontszám],táblázatOsztályPontszámok[Tantárgy],Számítások!$C25,táblázatOsztályPontszámok[Típus],Számítások!AH$5)*Beállítások!J28,\"\")","v":""},{"$f":"IFERROR(AVERAGEIFS(táblázatOsztályPontszámok[Pontszám],táblázatOsztályPontszámok[Tantárgy],Számítások!$C25,táblázatOsztályPontszámok[Típus],Számítások!AI$5)*Beállítások!K28,\"\")","v":""},0,{"$f":"SUMIFS(Beállítások!E28:K28,Számítások!AC25:AI25,\">0\")","v":0},"","",""]
[null,null,{"$f":"IF(Beállítások!C29=\"\",\"\",Beállítások!C29)","v":""},"","","","","","","","","","","","","","","","","","","","","","","","","",{"$f":"IFERROR(AVERAGEIFS(táblázatOsztályPontszámok[Pontszám],táblázatOsztályPontszámok[Tantárgy],Számítások!$C26,táblázatOsztályPontszámok[Típus],Számítások!AC$5)*Beállítások!E29,\"\")","v":""},{"$f":"IFERROR(AVERAGEIFS(táblázatOsztályPontszámok[Pontszám],táblázatOsztályPontszámok[Tantárgy],Számítások!$C26,táblázatOsztályPontszámok[Típus],Számítások!AD$5)*Beállítások!F29,\"\")","v":""},{"$f":"IFERROR(AVERAGEIFS(táblázatOsztályPontszámok[Pontszám],táblázatOsztályPontszámok[Tantárgy],Számítások!$C26,táblázatOsztályPontszámok[Típus],Számítások!AE$5)*Beállítások!G29,\"\")","v":""},{"$f":"IFERROR(AVERAGEIFS(táblázatOsztályPontszámok[Pontszám],táblázatOsztályPontszámok[Tantárgy],Számítások!$C26,táblázatOsztályPontszámok[Típus],Számítások!AF$5)*Beállítások!H29,\"\")","v":""},{"$f":"IFERROR(AVERAGEIFS(táblázatOsztályPontszámok[Pontszám],táblázatOsztályPontszámok[Tantárgy],Számítások!$C26,táblázatOsztályPontszámok[Típus],Számítások!AG$5)*Beállítások!I29,\"\")","v":""},{"$f":"IFERROR(AVERAGEIFS(táblázatOsztályPontszámok[Pontszám],táblázatOsztályPontszámok[Tantárgy],Számítások!$C26,táblázatOsztályPontszámok[Típus],Számítások!AH$5)*Beállítások!J29,\"\")","v":""},{"$f":"IFERROR(AVERAGEIFS(táblázatOsztályPontszámok[Pontszám],táblázatOsztályPontszámok[Tantárgy],Számítások!$C26,táblázatOsztályPontszámok[Típus],Számítások!AI$5)*Beállítások!K29,\"\")","v":""},0,{"$f":"SUMIFS(Beállítások!E29:K29,Számítások!AC26:AI26,\">0\")","v":0},"","",""]
[null,null,{"$f":"IF(Beállítások!C30=\"\",\"\",Beállítások!C30)","v":""},"","","","","","","","","","","","","","","","","","","","","","","","","",{"$f":"IFERROR(AVERAGEIFS(táblázatOsztályPontszámok[Pontszám],táblázatOsztályPontszámok[Tantárgy],Számítások!$C27,táblázatOsztályPontszámok[Típus],Számítások!AC$5)*Beállítások!E30,\"\")","v":""},{"$f":"IFERROR(AVERAGEIFS(táblázatOsztályPontszámok[Pontszám],táblázatOsztályPontszámok[Tantárgy],Számítások!$C27,táblázatOsztályPontszámok[Típus],Számítások!AD$5)*Beállítások!F30,\"\")","v":""},{"$f":"IFERROR(AVERAGEIFS(táblázatOsztályPontszámok[Pontszám],táblázatOsztályPontszámok[Tantárgy],Számítások!$C27,táblázatOsztályPontszámok[Típus],Számítások!AE$5)*Beállítások!G30,\"\")","v":""},{"$f":"IFERROR(AVERAGEIFS(táblázatOsztályPontszámok[Pontszám],táblázatOsztályPontszámok[Tantárgy],Számítások!$C27,táblázatOsztályPontszámok[Típus],Számítások!AF$5)*Beállítások!H30,\"\")","v":""},{"$f":"IFERROR(AVERAGEIFS(táblázatOsztályPontszámok[Pontszám],táblázatOsztályPontszámok[Tantárgy],Számítások!$C27,táblázatOsztályPontszámok[Típus],Számítások!AG$5)*Beállítások!I30,\"\")","v":""},{"$f":"IFERROR(AVERAGEIFS(táblázatOsztályPontszámok[Pontszám],táblázatOsztályPontszámok[Tantárgy],Számítások!$C27,táblázatOsztályPontszámok[Típus],Számítások!AH$5)*Beállítások!J30,\"\")","v":""},{"$f":"IFERROR(AVERAGEIFS(táblázatOsztályPontszámok[Pontszám],táblázatOsztályPontszámok[Tantárgy],Számítások!$C27,táblázatOsztályPontszámok[Típus],Számítások!AI$5)*Beállítások!K30,\"\")","v":""},0,{"$f":"SUMIFS(Beállítások!E30:K30,Számítások!AC27:AI27,\">0\")","v":0},"","",""]
[null,null,{"$f":"IF(Beállítások!C31=\"\",\"\",Beállítások!C31)","v":""},"","","","","","","","","","","","","","","","","","","","","","","","","",{"$f":"IFERROR(AVERAGEIFS(táblázatOsztályPontszámok[Pontszám],táblázatOsztályPontszámok[Tantárgy],Számítások!$C28,táblázatOsztályPontszámok[Típus],Számítások!AC$5)*Beállítások!E31,\"\")","v":""},{"$f":"IFERROR(AVERAGEIFS(táblázatOsztályPontszámok[Pontszám],táblázatOsztályPontszámok[Tantárgy],Számítások!$C28,táblázatOsztályPontszámok[Típus],Számítások!AD$5)*Beállítások!F31,\"\")","v":""},{"$f":"IFERROR(AVERAGEIFS(táblázatOsztályPontszámok[Pontszám],táblázatOsztályPontszámok[Tantárgy],Számítások!$C28,táblázatOsztályPontszámok[Típus],Számítások!AE$5)*Beállítások!G31,\"\")","v":""},{"$f":"IFERROR(AVERAGEIFS(táblázatOsztályPontszámok[Pontszám],táblázatOsztályPontszámok[Tantárgy],Számítások!$C28,táblázatOsztályPontszámok[Típus],Számítások!AF$5)*Beállítások!H31,\"\")","v":""},{"$f":"IFERROR(AVERAGEIFS(táblázatOsztályPontszámok[Pontszám],táblázatOsztályPontszámok[Tantárgy],Számítások!$C28,táblázatOsztályPontszámok[Típus],Számítások!AG$5)*Beállítások!I31,\"\")","v":""},{"$f":"IFERROR(AVERAGEIFS(táblázatOsztályPontszámok[Pontszám],táblázatOsztályPontszámok[Tantárgy],Számítások!$C28,táblázatOsztályPontszámok[Típus],Számítások!AH$5)*Beállítások!J31,\"\")","v":""},{"$f":"IFERROR(AVERAGEIFS(táblázatOsztályPontszámok[Pontszám],táblázatOsztályPontszámok[Tantárgy],Számítások!$C28,táblázatOsztályPontszámok[Típus],Számítások!AI$5)*Beállítások!K31,\"\")","v":""},0,{"$f":"SUMIFS(Beállítások!E31:K31,Számítások!AC28:AI28,\">0\")","v":0},"","",""]
[null,null,{"$f":"IF(Beállítások!C32=\"\",\"\",Beállítások!C32)","v":""},"","","","","","","","","","","","","","","","","","","","","","","","","",{"$f":"IFERROR(AVERAGEIFS(táblázatOsztályPontszámok[Pontszám],táblázatOsztályPontszámok[Tantárgy],Számítások!$C29,táblázatOsztályPontszámok[Típus],Számítások!AC$5)*Beállítások!E32,\"\")","v":""},{"$f":"IFERROR(AVERAGEIFS(táblázatOsztályPontszámok[Pontszám],táblázatOsztályPontszámok[Tantárgy],Számítások!$C29,táblázatOsztályPontszámok[Típus],Számítások!AD$5)*Beállítások!F32,\"\")","v":""},{"$f":"IFERROR(AVERAGEIFS(táblázatOsztályPontszámok[Pontszám],táblázatOsztályPontszámok[Tantárgy],Számítások!$C29,táblázatOsztályPontszámok[Típus],Számítások!AE$5)*Beállítások!G32,\"\")","v":""},{"$f":"IFERROR(AVERAGEIFS(táblázatOsztályPontszámok[Pontszám],táblázatOsztályPontszámok[Tantárgy],Számítások!$C29,táblázatOsztályPontszámok[Típus],Számítások!AF$5)*Beállítások!H32,\"\")","v":""},{"$f":"IFERROR(AVERAGEIFS(táblázatOsztályPontszámok[Pontszám],táblázatOsztályPontszámok[Tantárgy],Számítások!$C29,táblázatOsztályPontszámok[Típus],Számítások!AG$5)*Beállítások!I32,\"\")","v":""},{"$f":"IFERROR(AVERAGEIFS(táblázatOsztályPontszámok[Pontszám],táblázatOsztályPontszámok[Tantárgy],Számítások!$C29,táblázatOsztályPontszámok[Típus],Számítások!AH$5)*Beállítások!J32,\"\")","v":""},{"$f":"IFERROR(AVERAGEIFS(táblázatOsztályPontszámok[Pontszám],táblázatOsztályPontszámok[Tantárgy],Számítások!$C29,táblázatOsztályPontszámok[Típus],Számítások!AI$5)*Beállítások!K32,\"\")","v":""},0,{"$f":"SUMIFS(Beállítások!E32:K32,Számítások!AC29:AI29,\">0\")","v":0},"","",""]
[null,null,{"$f":"IF(Beállítások!C33=\"\",\"\",Beállítások!C33)","v":""},"","","","","","","","","","","","","","","","","","","","","","","","","",{"$f":"IFERROR(AVERAGEIFS(táblázatOsztályPontszámok[Pontszám],táblázatOsztályPontszámok[Tantárgy],Számítások!$C30,táblázatOsztályPontszámok[Típus],Számítások!AC$5)*Beállítások!E33,\"\")","v":""},{"$f":"IFERROR(AVERAGEIFS(táblázatOsztályPontszámok[Pontszám],táblázatOsztályPontszámok[Tantárgy],Számítások!$C30,táblázatOsztályPontszámok[Típus],Számítások!AD$5)*Beállítások!F33,\"\")","v":""},{"$f":"IFERROR(AVERAGEIFS(táblázatOsztályPontszámok[Pontszám],táblázatOsztályPontszámok[Tantárgy],Számítások!$C30,táblázatOsztályPontszámok[Típus],Számítások!AE$5)*Beállítások!G33,\"\")","v":""},{"$f":"IFERROR(AVERAGEIFS(táblázatOsztályPontszámok[Pontszám],táblázatOsztályPontszámok[Tantárgy],Számítások!$C30,táblázatOsztályPontszámok[Típus],Számítások!AF$5)*Beállítások!H33,\"\")","v":""},{"$f":"IFERROR(AVERAGEIFS(táblázatOsztályPontszámok[Pontszám],táblázatOsztályPontszámok[Tantárgy],Számítások!$C30,táblázatOsztályPontszámok[Típus],Számítások!AG$5)*Beállítások!I33,\"\")","v":""},{"$f":"IFERROR(AVERAGEIFS(táblázatOsztályPontszámok[Pontszám],táblázatOsztályPontszámok[Tantárgy],Számítások!$C30,táblázatOsztályPontszámok[Típus],Számítások!AH$5)*Beállítások!J33,\"\")","v":""},{"$f":"IFERROR(AVERAGEIFS(táblázatOsztályPontszámok[Pontszám],táblázatOsztályPontszámok[Tantárgy],Számítások!$C30,táblázatOsztályPontszámok[Típus],Számítások!AI$5)*Beállítások!K33,\"\")","v":""},0,{"$f":"SUMIFS(Beállítások!E33:K33,Számítások!AC30:AI30,\">0\")","v":0},"","",""]
[]
[]
[null,1,{"$f":"Pontszámkövető!C4&COUNTIF(Pontszámkövető!$C$4:C4,Pontszámkövető!C4)","v":"Modern francia1"}]
[null,2,{"$f":"Pontszámkövető!C5&COUNTIF(Pontszámkövető!$C$4:C5,Pontszámkövető!C5)","v":"Haladó Java-programozás1"}]
[null,3,{"$f":"Pontszámkövető!C6&COUNTIF(Pontszámkövető!$C$4:C6,Pontszámkövető!C6)","v":"Spanyol1"}]
[null,4,{"$f":"Pontszámkövető!C7&COUNTIF(Pontszámkövető!$C$4:C7,Pontszámkövető!C7)","v":"Elméleti fizika1"}]
[null,5,{"$f":"Pontszámkövető!C8&COUNTIF(Pontszámkövető!$C$4:C8,Pontszámkövető!C8)","v":"Modern francia2"}]
[null,6,{"$f":"Pontszámkövető!C9&COUNTIF(Pontszámkövető!$C$4:C9,Pontszámkövető!C9)","v":"Modern francia3"}]
[null,7,{"$f":"Pontszámkövető!C10&COUNTIF(Pontszámkövető!$C$4:C10,Pontszámkövető!C10)","v":"Fogalmazás1"}]
[null,8,{"$f":"Pontszámkövető!C11&COUNTIF(Pontszámkövető!$C$4:C11,Pontszámkövető!C11)","v":"Matematika 11"}]
[null,9,{"$f":"Pontszámkövető!C12&COUNTIF(Pontszámkövető!$C$4:C12,Pontszámkövető!C12)","v":"Matematika 21"}]
[null,10,{"$f":"Pontszámkövető!C13&COUNTIF(Pontszámkövető!$C$4:C13,Pontszámkövető!C13)","v":"Matematika 12"}]
[null,11,{"$f":"Pontszámkövető!C14&COUNTIF(Pontszámkövető!$C$4:C14,Pontszámkövető!C14)","v":"Matematika 22"}]
[null,12,{"$f":"Pontszámkövető!C15&COUNTIF(Pontszámkövető!$C$4:C15,Pontszámkövető!C15)","v":"0"}]
[null,13,{"$f":"Pontszámkövető!C16&COUNTIF(Pontszámkövető!$C$4:C16,Pontszámkövető!C16)","v":"0"}]
[null,14,{"$f":"Pontszámkövető!C17&COUNTIF(Pontszámkövető!$C$4:C17,Pontszámkövető!C17)","v":"0"}]
[null,15,{"$f":"Pontszámkövető!C18&COUNTIF(Pontszámkövető!$C$4:C18,Pontszámkövető!C18)","v":"0"}]
[null,16,{"$f":"Pontszámkövető!C19&COUNTIF(Pontszámkövető!$C$4:C19,Pontszámkövető!C19)","v":"0"}]
[null,17,{"$f":"Pontszámkövető!C20&COUNTIF(Pontszámkövető!$C$4:C20,Pontszámkövető!C20)","v":"0"}]
[null,18,{"$f":"Pontszámkövető!C21&COUNTIF(Pontszámkövető!$C$4:C21,Pontszámkövető!C21)","v":"0"}]
[null,19,{"$f":"Pontszámkövető!C22&COUNTIF(Pontszámkövető!$C$4:C22,Pontszámkövető!C22)","v":"0"}]
[null,20,{"$f":"Pontszámkövető!C23&COUNTIF(Pontszámkövető!$C$4:C23,Pontszámkövető!C23)","v":"0"}]
[null,21,{"$f":"Pontszámkövető!C24&COUNTIF(Pontszámkövető!$C$4:C24,Pontszámkövető!C24)","v":"0"}]
[null,22,{"$f":"Pontszámkövető!C25&COUNTIF(Pontszámkövető!$C$4:C25,Pontszámkövető!C25)","v":"0"}]
[null,23,{"$f":"Pontszámkövető!C26&COUNTIF(Pontszámkövető!$C$4:C26,Pontszámkövető!C26)","v":"0"}]
[null,24,{"$f":"Pontszámkövető!C27&COUNTIF(Pontszámkövető!$C$4:C27,Pontszámkövető!C27)","v":"0"}]
[null,25,{"$f":"Pontszámkövető!C28&COUNTIF(Pontszámkövető!$C$4:C28,Pontszámkövető!C28)","v":"0"}]
[null,26,{"$f":"Pontszámkövető!C29&COUNTIF(Pontszámkövető!$C$4:C29,Pontszámkövető!C29)","v":"0"}]
[null,27,{"$f":"Pontszámkövető!C30&COUNTIF(Pontszámkövető!$C$4:C30,Pontszámkövető!C30)","v":"0"}]
[null,28,{"$f":"Pontszámkövető!C31&COUNTIF(Pontszámkövető!$C$4:C31,Pontszámkövető!C31)","v":"0"}]
[null,29,{"$f":"Pontszámkövető!C32&COUNTIF(Pontszámkövető!$C$4:C32,Pontszámkövető!C32)","v":"0"}]
[null,30,{"$f":"Pontszámkövető!C33&COUNTIF(Pontszámkövető!$C$4:C33,Pontszámkövető!C33)","v":"0"}]
[null,31,{"$f":"Pontszámkövető!C34&COUNTIF(Pontszámkövető!$C$4:C34,Pontszámkövető!C34)","v":"0"}]
[null,32,{"$f":"Pontszámkövető!C35&COUNTIF(Pontszámkövető!$C$4:C35,Pontszámkövető!C35)","v":"0"}]
[null,33,{"$f":"Pontszámkövető!C36&COUNTIF(Pontszámkövető!$C$4:C36,Pontszámkövető!C36)","v":"0"}]
[null,34,{"$f":"Pontszámkövető!C37&COUNTIF(Pontszámkövető!$C$4:C37,Pontszámkövető!C37)","v":"0"}]
[null,35,{"$f":"Pontszámkövető!C38&COUNTIF(Pontszámkövető!$C$4:C38,Pontszámkövető!C38)","v":"0"}]
[null,36,{"$f":"Pontszámkövető!C39&COUNTIF(Pontszámkövető!$C$4:C39,Pontszámkövető!C39)","v":"0"}]
[null,37,{"$f":"Pontszámkövető!C40&COUNTIF(Pontszámkövető!$C$4:C40,Pontszámkövető!C40)","v":"0"}]
[null,38,{"$f":"Pontszámkövető!C41&COUNTIF(Pontszámkövető!$C$4:C41,Pontszámkövető!C41)","v":"0"}]
[null,39,{"$f":"Pontszámkövető!C42&COUNTIF(Pontszámkövető!$C$4:C42,Pontszámkövető!C42)","v":"0"}]
[null,40,{"$f":"Pontszámkövető!C43&COUNTIF(Pontszámkövető!$C$4:C43,Pontszámkövető!C43)","v":"0"}]
[null,41,{"$f":"Pontszámkövető!C44&COUNTIF(Pontszámkövető!$C$4:C44,Pontszámkövető!C44)","v":"0"}]
[null,42,{"$f":"Pontszámkövető!C45&COUNTIF(Pontszámkövető!$C$4:C45,Pontszámkövető!C45)","v":"0"}]
[null,43,{"$f":"Pontszámkövető!C46&COUNTIF(Pontszámkövető!$C$4:C46,Pontszámkövető!C46)","v":"0"}]
[null,44,{"$f":"Pontszámkövető!C47&COUNTIF(Pontszámkövető!$C$4:C47,Pontszámkövető!C47)","v":"0"}]
[null,45,{"$f":"Pontszámkövető!C48&COUNTIF(Pontszámkövető!$C$4:C48,Pontszámkövető!C48)","v":"0"}]
[null,46,{"$f":"Pontszámkövető!C49&COUNTIF(Pontszámkövető!$C$4:C49,Pontszámkövető!C49)","v":"0"}]
[null,47,{"$f":"Pontszámkövető!C50&COUNTIF(Pontszámkövető!$C$4:C50,Pontszámkövető!C50)","v":"0"}]
[null,48,{"$f":"Pontszámkövető!C51&COUNTIF(Pontszámkövető!$C$4:C51,Pontszámkövető!C51)","v":"0"}]
[null,49,{"$f":"Pontszámkövető!C52&COUNTIF(Pontszámkövető!$C$4:C52,Pontszámkövető!C52)","v":"0"}]
[null,50,{"$f":"Pontszámkövető!C53&COUNTIF(Pontszámkövető!$C$4:C53,Pontszámkövető!C53)","v":"0"}]
[null,51,{"$f":"Pontszámkövető!C54&COUNTIF(Pontszámkövető!$C$4:C54,Pontszámkövető!C54)","v":"0"}]
[null,52,{"$f":"Pontszámkövető!C55&COUNTIF(Pontszámkövető!$C$4:C55,Pontszámkövető!C55)","v":"0"}]
[null,53,{"$f":"Pontszámkövető!C56&COUNTIF(Pontszámkövető!$C$4:C56,Pontszámkövető!C56)","v":"0"}]
[null,54,{"$f":"Pontszámkövető!C57&COUNTIF(Pontszámkövető!$C$4:C57,Pontszámkövető!C57)","v":"0"}]
[null,55,{"$f":"Pontszámkövető!C58&COUNTIF(Pontszámkövető!$C$4:C58,Pontszámkövető!C58)","v":"0"}]
[null,56,{"$f":"Pontszámkövető!C59&COUNTIF(Pontszámkövető!$C$4:C59,Pontszámkövető!C59)","v":"0"}]
[null,57,{"$f":"Pontszámkövető!C60&COUNTIF(Pontszámkövető!$C$4:C60,Pontszámkövető!C60)","v":"0"}]
[null,58,{"$f":"Pontszámkövető!C61&COUNTIF(Pontszámkövető!$C$4:C61,Pontszámkövető!C61)","v":"0"}]
[null,59,{"$f":"Pontszámkövető!C62&COUNTIF(Pontszámkövető!$C$4:C62,Pontszámkövető!C62)","v":"0"}]
[null,60,{"$f":"Pontszámkövető!C63&COUNTIF(Pontszámkövető!$C$4:C63,Pontszámkövető!C63)","v":"0"}]
[null,61,{"$f":"Pontszámkövető!C64&COUNTIF(Pontszámkövető!$C$4:C64,Pontszámkövető!C64)","v":"0"}]
[null,62,{"$f":"Pontszámkövető!C65&COUNTIF(Pontszámkövető!$C$4:C65,Pontszámkövető!C65)","v":"0"}]
[null,63,{"$f":"Pontszámkövető!C66&COUNTIF(Pontszámkövető!$C$4:C66,Pontszámkövető!C66)","v":"0"}]
[null,64,{"$f":"Pontszámkövető!C67&COUNTIF(Pontszámkövető!$C$4:C67,Pontszámkövető!C67)","v":"0"}]
[null,65,{"$f":"Pontszámkövető!C68&COUNTIF(Pontszámkövető!$C$4:C68,Pontszámkövető!C68)","v":"0"}]
[null,66,{"$f":"Pontszámkövető!C69&COUNTIF(Pontszámkövető!$C$4:C69,Pontszámkövető!C69)","v":"0"}]
[null,67,{"$f":"Pontszámkövető!C70&COUNTIF(Pontszámkövető!$C$4:C70,Pontszámkövető!C70)","v":"0"}]
[null,68,{"$f":"Pontszámkövető!C71&COUNTIF(Pontszámkövető!$C$4:C71,Pontszámkövető!C71)","v":"0"}]
[null,69,{"$f":"Pontszámkövető!C72&COUNTIF(Pontszámkövető!$C$4:C72,Pontszámkövető!C72)","v":"0"}]
[null,70,{"$f":"Pontszámkövető!C73&COUNTIF(Pontszámkövető!$C$4:C73,Pontszámkövető!C73)","v":"0"}]
[null,71,{"$f":"Pontszámkövető!C74&COUNTIF(Pontszámkövető!$C$4:C74,Pontszámkövető!C74)","v":"0"}]
[null,72,{"$f":"Pontszámkövető!C75&COUNTIF(Pontszámkövető!$C$4:C75,Pontszámkövető!C75)","v":"0"}]
[null,73,{"$f":"Pontszámkövető!C76&COUNTIF(Pontszámkövető!$C$4:C76,Pontszámkövető!C76)","v":"0"}]
[null,74,{"$f":"Pontszámkövető!C77&COUNTIF(Pontszámkövető!$C$4:C77,Pontszámkövető!C77)","v":"0"}]
[null,75,{"$f":"Pontszámkövető!C78&COUNTIF(Pontszámkövető!$C$4:C78,Pontszámkövető!C78)","v":"0"}]
[null,76,{"$f":"Pontszámkövető!C79&COUNTIF(Pontszámkövető!$C$4:C79,Pontszámkövető!C79)","v":"0"}]
[null,77,{"$f":"Pontszámkövető!C80&COUNTIF(Pontszámkövető!$C$4:C80,Pontszámkövető!C80)","v":"0"}]
[null,78,{"$f":"Pontszámkövető!C81&COUNTIF(Pontszámkövető!$C$4:C81,Pontszámkövető!C81)","v":"0"}]
[null,79,{"$f":"Pontszámkövető!C82&COUNTIF(Pontszámkövető!$C$4:C82,Pontszámkövető!C82)","v":"0"}]
[null,80,{"$f":"Pontszámkövető!C83&COUNTIF(Pontszámkövető!$C$4:C83,Pontszámkövető!C83)","v":"0"}]
[null,81,{"$f":"Pontszámkövető!C84&COUNTIF(Pontszámkövető!$C$4:C84,Pontszámkövető!C84)","v":"0"}]
[null,82,{"$f":"Pontszámkövető!C85&COUNTIF(Pontszámkövető!$C$4:C85,Pontszámkövető!C85)","v":"0"}]
[null,83,{"$f":"Pontszámkövető!C86&COUNTIF(Pontszámkövető!$C$4:C86,Pontszámkövető!C86)","v":"0"}]
[null,84,{"$f":"Pontszámkövető!C87&COUNTIF(Pontszámkövető!$C$4:C87,Pontszámkövető!C87)","v":"0"}]
[null,85,{"$f":"Pontszámkövető!C88&COUNTIF(Pontszámkövető!$C$4:C88,Pontszámkövető!C88)","v":"0"}]
[null,86,{"$f":"Pontszámkövető!C89&COUNTIF(Pontszámkövető!$C$4:C89,Pontszámkövető!C89)","v":"0"}]
[null,87,{"$f":"Pontszámkövető!C90&COUNTIF(Pontszámkövető!$C$4:C90,Pontszámkövető!C90)","v":"0"}]
[null,88,{"$f":"Pontszámkövető!C91&COUNTIF(Pontszámkövető!$C$4:C91,Pontszámkövető!C91)","v":"0"}]
[null,89,{"$f":"Pontszámkövető!C92&COUNTIF(Pontszámkövető!$C$4:C92,Pontszámkövető!C92)","v":"0"}]
[null,90,{"$f":"Pontszámkövető!C93&COUNTIF(Pontszámkövető!$C$4:C93,Pontszámkövető!C93)","v":"0"}]
[null,91,{"$f":"Pontszámkövető!C94&COUNTIF(Pontszámkövető!$C$4:C94,Pontszámkövető!C94)","v":"0"}]
[null,92,{"$f":"Pontszámkövető!C95&COUNTIF(Pontszámkövető!$C$4:C95,Pontszámkövető!C95)","v":"0"}]
[null,93,{"$f":"Pontszámkövető!C96&COUNTIF(Pontszámkövető!$C$4:C96,Pontszámkövető!C96)","v":"0"}]
[null,94,{"$f":"Pontszámkövető!C97&COUNTIF(Pontszámkövető!$C$4:C97,Pontszámkövető!C97)","v":"0"}]
[null,95,{"$f":"Pontszámkövető!C98&COUNTIF(Pontszámkövető!$C$4:C98,Pontszámkövető!C98)","v":"0"}]
[null,96,{"$f":"Pontszámkövető!C99&COUNTIF(Pontszámkövető!$C$4:C99,Pontszámkövető!C99)","v":"0"}]
[null,97,{"$f":"Pontszámkövető!C100&COUNTIF(Pontszámkövető!$C$4:C100,Pontszámkövető!C100)","v":"0"}]
[null,98,{"$f":"Pontszámkövető!C101&COUNTIF(Pontszámkövető!$C$4:C101,Pontszámkövető!C101)","v":"0"}]
[null,99,{"$f":"Pontszámkövető!C102&COUNTIF(Pontszámkövető!$C$4:C102,Pontszámkövető!C102)","v":"0"}]
[null,100,{"$f":"Pontszámkövető!C103&COUNTIF(Pontszámkövető!$C$4:C103,Pontszámkövető!C103)","v":"0"}]
[null,101,{"$f":"Pontszámkövető!C104&COUNTIF(Pontszámkövető!$C$4:C104,Pontszámkövető!C104)","v":"0"}]
[null,102,{"$f":"Pontszámkövető!C105&COUNTIF(Pontszámkövető!$C$4:C105,Pontszámkövető!C105)","v":"0"}]
[null,103,{"$f":"Pontszámkövető!C106&COUNTIF(Pontszámkövető!$C$4:C106,Pontszámkövető!C106)","v":"0"}]
[null,104,{"$f":"Pontszámkövető!C107&COUNTIF(Pontszámkövető!$C$4:C107,Pontszámkövető!C107)","v":"0"}]
[null,105,{"$f":"Pontszámkövető!C108&COUNTIF(Pontszámkövető!$C$4:C108,Pontszámkövető!C108)","v":"0"}]
[null,106,{"$f":"Pontszámkövető!C109&COUNTIF(Pontszámkövető!$C$4:C109,Pontszámkövető!C109)","v":"0"}]
[null,107,{"$f":"Pontszámkövető!C110&COUNTIF(Pontszámkövető!$C$4:C110,Pontszámkövető!C110)","v":"0"}]
[null,108,{"$f":"Pontszámkövető!C111&COUNTIF(Pontszámkövető!$C$4:C111,Pontszámkövető!C111)","v":"0"}]
[null,109,{"$f":"Pontszámkövető!C112&COUNTIF(Pontszámkövető!$C$4:C112,Pontszámkövető!C112)","v":"0"}]
[null,110,{"$f":"Pontszámkövető!C113&COUNTIF(Pontszámkövető!$C$4:C113,Pontszámkövető!C113)","v":"0"}]
[null,111,{"$f":"Pontszámkövető!C114&COUNTIF(Pontszámkövető!$C$4:C114,Pontszámkövető!C114)","v":"0"}]
[null,112,{"$f":"Pontszámkövető!C115&COUNTIF(Pontszámkövető!$C$4:C115,Pontszámkövető!C115)","v":"0"}]
[null,113,{"$f":"Pontszámkövető!C116&COUNTIF(Pontszámkövető!$C$4:C116,Pontszámkövető!C116)","v":"0"}]
[null,114,{"$f":"Pontszámkövető!C117&COUNTIF(Pontszámkövető!$C$4:C117,Pontszámkövető!C117)","v":"0"}]
[null,115,{"$f":"Pontszámkövető!C118&COUNTIF(Pontszámkövető!$C$4:C118,Pontszámkövető!C118)","v":"0"}]
[null,116,{"$f":"Pontszámkövető!C119&COUNTIF(Pontszámkövető!$C$4:C119,Pontszámkövető!C119)","v":"0"}]
[null,117,{"$f":"Pontszámkövető!C120&COUNTIF(Pontszámkövető!$C$4:C120,Pontszámkövető!C120)","v":"0"}]
[null,118,{"$f":"Pontszámkövető!C121&COUNTIF(Pontszámkövető!$C$4:C121,Pontszámkövető!C121)","v":"0"}]
[null,119,{"$f":"Pontszámkövető!C122&COUNTIF(Pontszámkövető!$C$4:C122,Pontszámkövető!C122)","v":"0"}]
[null,120,{"$f":"Pontszámkövető!C123&COUNTIF(Pontszámkövető!$C$4:C123,Pontszámkövető!C123)","v":"0"}]
[null,121,{"$f":"Pontszámkövető!C124&COUNTIF(Pontszámkövető!$C$4:C124,Pontszámkövető!C124)","v":"0"}]
[null,122,{"$f":"Pontszámkövető!C125&COUNTIF(Pontszámkövető!$C$4:C125,Pontszámkövető!C125)","v":"0"}]
[null,123,{"$f":"Pontszámkövető!C126&COUNTIF(Pontszámkövető!$C$4:C126,Pontszámkövető!C126)","v":"0"}]
[null,124,{"$f":"Pontszámkövető!C127&COUNTIF(Pontszámkövető!$C$4:C127,Pontszámkövető!C127)","v":"0"}]
[null,125,{"$f":"Pontszámkövető!C128&COUNTIF(Pontszámkövető!$C$4:C128,Pontszámkövető!C128)","v":"0"}]
[null,126,{"$f":"Pontszámkövető!C129&COUNTIF(Pontszámkövető!$C$4:C129,Pontszámkövető!C129)","v":"0"}]
[null,127,{"$f":"Pontszámkövető!C130&COUNTIF(Pontszámkövető!$C$4:C130,Pontszámkövető!C130)","v":"0"}]
[null,128,{"$f":"Pontszámkövető!C131&COUNTIF(Pontszámkövető!$C$4:C131,Pontszámkövető!C131)","v":"0"}]
[null,129,{"$f":"Pontszámkövető!C132&COUNTIF(Pontszámkövető!$C$4:C132,Pontszámkövető!C132)","v":"0"}]
[null,130,{"$f":"Pontszámkövető!C133&COUNTIF(Pontszámkövető!$C$4:C133,Pontszámkövető!C133)","v":"0"}]
[null,131,{"$f":"Pontszámkövető!C134&COUNTIF(Pontszámkövető!$C$4:C134,Pontszámkövető!C134)","v":"0"}]
[null,132,{"$f":"Pontszámkövető!C135&COUNTIF(Pontszámkövető!$C$4:C135,Pontszámkövető!C135)","v":"0"}]
[null,133,{"$f":"Pontszámkövető!C136&COUNTIF(Pontszámkövető!$C$4:C136,Pontszámkövető!C136)","v":"0"}]
[null,134,{"$f":"Pontszámkövető!C137&COUNTIF(Pontszámkövető!$C$4:C137,Pontszámkövető!C137)","v":"0"}]
[null,135,{"$f":"Pontszámkövető!C138&COUNTIF(Pontszámkövető!$C$4:C138,Pontszámkövető!C138)","v":"0"}]
[null,136,{"$f":"Pontszámkövető!C139&COUNTIF(Pontszámkövető!$C$4:C139,Pontszámkövető!C139)","v":"0"}]
[null,137,{"$f":"Pontszámkövető!C140&COUNTIF(Pontszámkövető!$C$4:C140,Pontszámkövető!C140)","v":"0"}]
[null,138,{"$f":"Pontszámkövető!C141&COUNTIF(Pontszámkövető!$C$4:C141,Pontszámkövető!C141)","v":"0"}]
[null,139,{"$f":"Pontszámkövető!C142&COUNTIF(Pontszámkövető!$C$4:C142,Pontszámkövető!C142)","v":"0"}]
[null,140,{"$f":"Pontszámkövető!C143&COUNTIF(Pontszámkövető!$C$4:C143,Pontszámkövető!C143)","v":"0"}]
[null,141,{"$f":"Pontszámkövető!C144&COUNTIF(Pontszámkövető!$C$4:C144,Pontszámkövető!C144)","v":"0"}]
[null,142,{"$f":"Pontszámkövető!C145&COUNTIF(Pontszámkövető!$C$4:C145,Pontszámkövető!C145)","v":"0"}]
[null,143,{"$f":"Pontszámkövető!C146&COUNTIF(Pontszámkövető!$C$4:C146,Pontszámkövető!C146)","v":"0"}]
[null,144,{"$f":"Pontszámkövető!C147&COUNTIF(Pontszámkövető!$C$4:C147,Pontszámkövető!C147)","v":"0"}]
[null,145,{"$f":"Pontszámkövető!C148&COUNTIF(Pontszámkövető!$C$4:C148,Pontszámkövető!C148)","v":"0"}]
[null,146,{"$f":"Pontszámkövető!C149&COUNTIF(Pontszámkövető!$C$4:C149,Pontszámkövető!C149)","v":"0"}]
[null,147,{"$f":"Pontszámkövető!C150&COUNTIF(Pontszámkövető!$C$4:C150,Pontszámkövető!C150)","v":"0"}]
[null,148,{"$f":"Pontszámkövető!C151&COUNTIF(Pontszámkövető!$C$4:C151,Pontszámkövető!C151)","v":"0"}]
[null,149,{"$f":"Pontszámkövető!C152&COUNTIF(Pontszámkövető!$C$4:C152,Pontszámkövető!C152)","v":"0"}]
[null,150,{"$f":"Pontszámkövető!C153&COUNTIF(Pontszámkövető!$C$4:C153,Pontszámkövető!C153)","v":"0"}]
[null,151,{"$f":"Pontszámkövető!C154&COUNTIF(Pontszámkövető!$C$4:C154,Pontszámkövető!C154)","v":"0"}]
[null,152,{"$f":"Pontszámkövető!C155&COUNTIF(Pontszámkövető!$C$4:C155,Pontszámkövető!C155)","v":"0"}]
[null,153,{"$f":"Pontszámkövető!C156&COUNTIF(Pontszámkövető!$C$4:C156,Pontszámkövető!C156)","v":"0"}]
[null,154,{"$f":"Pontszámkövető!C157&COUNTIF(Pontszámkövető!$C$4:C157,Pontszámkövető!C157)","v":"0"}]
[null,155,{"$f":"Pontszámkövető!C158&COUNTIF(Pontszámkövető!$C$4:C158,Pontszámkövető!C158)","v":"0"}]
[null,156,{"$f":"Pontszámkövető!C159&COUNTIF(Pontszámkövető!$C$4:C159,Pontszámkövető!C159)","v":"0"}]
[null,157,{"$f":"Pontszámkövető!C160&COUNTIF(Pontszámkövető!$C$4:C160,Pontszámkövető!C160)","v":"0"}]
[null,158,{"$f":"Pontszámkövető!C161&COUNTIF(Pontszámkövető!$C$4:C161,Pontszámkövető!C161)","v":"0"}]
[null,159,{"$f":"Pontszámkövető!C162&COUNTIF(Pontszámkövető!$C$4:C162,Pontszámkövető!C162)","v":"0"}]
[null,160,{"$f":"Pontszámkövető!C163&COUNTIF(Pontszámkövető!$C$4:C163,Pontszámkövető!C163)","v":"0"}]
[null,161,{"$f":"Pontszámkövető!C164&COUNTIF(Pontszámkövető!$C$4:C164,Pontszámkövető!C164)","v":"0"}]
[null,162,{"$f":"Pontszámkövető!C165&COUNTIF(Pontszámkövető!$C$4:C165,Pontszámkövető!C165)","v":"0"}]
[null,163,{"$f":"Pontszámkövető!C166&COUNTIF(Pontszámkövető!$C$4:C166,Pontszámkövető!C166)","v":"0"}]
[null,164,{"$f":"Pontszámkövető!C167&COUNTIF(Pontszámkövető!$C$4:C167,Pontszámkövető!C167)","v":"0"}]
[null,165,{"$f":"Pontszámkövető!C168&COUNTIF(Pontszámkövető!$C$4:C168,Pontszámkövető!C168)","v":"0"}]
[null,166,{"$f":"Pontszámkövető!C169&COUNTIF(Pontszámkövető!$C$4:C169,Pontszámkövető!C169)","v":"0"}]
[null,167,{"$f":"Pontszámkövető!C170&COUNTIF(Pontszámkövető!$C$4:C170,Pontszámkövető!C170)","v":"0"}]
[null,168,{"$f":"Pontszámkövető!C171&COUNTIF(Pontszámkövető!$C$4:C171,Pontszámkövető!C171)","v":"0"}]
[null,169,{"$f":"Pontszámkövető!C172&COUNTIF(Pontszámkövető!$C$4:C172,Pontszámkövető!C172)","v":"0"}]
[null,170,{"$f":"Pontszámkövető!C173&COUNTIF(Pontszámkövető!$C$4:C173,Pontszámkövető!C173)","v":"0"}]
[null,171,{"$f":"Pontszámkövető!C174&COUNTIF(Pontszámkövető!$C$4:C174,Pontszámkövető!C174)","v":"0"}]
[null,172,{"$f":"Pontszámkövető!C175&COUNTIF(Pontszámkövető!$C$4:C175,Pontszámkövető!C175)","v":"0"}]
[null,173,{"$f":"Pontszámkövető!C176&COUNTIF(Pontszámkövető!$C$4:C176,Pontszámkövető!C176)","v":"0"}]
[null,174,{"$f":"Pontszámkövető!C177&COUNTIF(Pontszámkövető!$C$4:C177,Pontszámkövető!C177)","v":"0"}]
[null,175,{"$f":"Pontszámkövető!C178&COUNTIF(Pontszámkövető!$C$4:C178,Pontszámkövető!C178)","v":"0"}]
[null,176,{"$f":"Pontszámkövető!C179&COUNTIF(Pontszámkövető!$C$4:C179,Pontszámkövető!C179)","v":"0"}]
[null,177,{"$f":"Pontszámkövető!C180&COUNTIF(Pontszámkövető!$C$4:C180,Pontszámkövető!C180)","v":"0"}]
[null,178,{"$f":"Pontszámkövető!C181&COUNTIF(Pontszámkövető!$C$4:C181,Pontszámkövető!C181)","v":"0"}]
[null,179,{"$f":"Pontszámkövető!C182&COUNTIF(Pontszámkövető!$C$4:C182,Pontszámkövető!C182)","v":"0"}]
[null,180,{"$f":"Pontszámkövető!C183&COUNTIF(Pontszámkövető!$C$4:C183,Pontszámkövető!C183)","v":"0"}]
[null,181,{"$f":"Pontszámkövető!C184&COUNTIF(Pontszámkövető!$C$4:C184,Pontszámkövető!C184)","v":"0"}]
[null,182,{"$f":"Pontszámkövető!C185&COUNTIF(Pontszámkövető!$C$4:C185,Pontszámkövető!C185)","v":"0"}]
[null,183,{"$f":"Pontszámkövető!C186&COUNTIF(Pontszámkövető!$C$4:C186,Pontszámkövető!C186)","v":"0"}]
[null,184,{"$f":"Pontszámkövető!C187&COUNTIF(Pontszámkövető!$C$4:C187,Pontszámkövető!C187)","v":"0"}]
[null,185,{"$f":"Pontszámkövető!C188&COUNTIF(Pontszámkövető!$C$4:C188,Pontszámkövető!C188)","v":"0"}]
[null,186,{"$f":"Pontszámkövető!C189&COUNTIF(Pontszámkövető!$C$4:C189,Pontszámkövető!C189)","v":"0"}]
[null,187,{"$f":"Pontszámkövető!C190&COUNTIF(Pontszámkövető!$C$4:C190,Pontszámkövető!C190)","v":"0"}]
[null,188,{"$f":"Pontszámkövető!C191&COUNTIF(Pontszámkövető!$C$4:C191,Pontszámkövető!C191)","v":"0"}]
[null,189,{"$f":"Pontszámkövető!C192&COUNTIF(Pontszámkövető!$C$4:C192,Pontszámkövető!C192)","v":"0"}]
[null,190,{"$f":"Pontszámkövető!C193&COUNTIF(Pontszámkövető!$C$4:C193,Pontszámkövető!C193)","v":"0"}]
[null,191,{"$f":"Pontszámkövető!C194&COUNTIF(Pontszámkövető!$C$4:C194,Pontszámkövető!C194)","v":"0"}]
[null,192,{"$f":"Pontszámkövető!C195&COUNTIF(Pontszámkövető!$C$4:C195,Pontszámkövető!C195)","v":"0"}]
[null,193,{"$f":"Pontszámkövető!C196&COUNTIF(Pontszámkövető!$C$4:C196,Pontszámkövető!C196)","v":"0"}]
[null,194,{"$f":"Pontszámkövető!C197&COUNTIF(Pontszámkövető!$C$4:C197,Pontszámkövető!C197)","v":"0"}]
[null,195,{"$f":"Pontszámkövető!C198&COUNTIF(Pontszámkövető!$C$4:C198,Pontszámkövető!C198)","v":"0"}]
[null,196,{"$f":"Pontszámkövető!C199&COUNTIF(Pontszámkövető!$C$4:C199,Pontszámkövető!C199)","v":"0"}]
[null,197,{"$f":"Pontszámkövető!C200&COUNTIF(Pontszámkövető!$C$4:C200,Pontszámkövető!C200)","v":"0"}]
[null,198,{"$f":"Pontszámkövető!C201&COUNTIF(Pontszámkövető!$C$4:C201,Pontszámkövető!C201)","v":"0"}]
[null,199,{"$f":"Pontszámkövető!C202&COUNTIF(Pontszámkövető!$C$4:C202,Pontszámkövető!C202)","v":"0"}]
[null,200,{"$f":"Pontszámkövető!C203&COUNTIF(Pontszámkövető!$C$4:C203,Pontszámkövető!C203)","v":"0"}]
[null,201,{"$f":"Pontszámkövető!C204&COUNTIF(Pontszámkövető!$C$4:C204,Pontszámkövető!C204)","v":"0"}]
[null,202,{"$f":"Pontszámkövető!C205&COUNTIF(Pontszámkövető!$C$4:C205,Pontszámkövető!C205)","v":"0"}]
[null,203,{"$f":"Pontszámkövető!C206&COUNTIF(Pontszámkövető!$C$4:C206,Pontszámkövető!C206)","v":"0"}]
[null,204,{"$f":"Pontszámkövető!C207&COUNTIF(Pontszámkövető!$C$4:C207,Pontszámkövető!C207)","v":"0"}]
[null,205,{"$f":"Pontszámkövető!C208&COUNTIF(Pontszámkövető!$C$4:C208,Pontszámkövető!C208)","v":"0"}]
[null,206,{"$f":"Pontszámkövető!C209&COUNTIF(Pontszámkövető!$C$4:C209,Pontszámkövető!C209)","v":"0"}]
[null,207,{"$f":"Pontszámkövető!C210&COUNTIF(Pontszámkövető!$C$4:C210,Pontszámkövető!C210)","v":"0"}]
[null,208,{"$f":"Pontszámkövető!C211&COUNTIF(Pontszámkövető!$C$4:C211,Pontszámkövető!C211)","v":"0"}]
[null,209,{"$f":"Pontszámkövető!C212&COUNTIF(Pontszámkövető!$C$4:C212,Pontszámkövető!C212)","v":"0"}]
[null,210,{"$f":"Pontszámkövető!C213&COUNTIF(Pontszámkövető!$C$4:C213,Pontszámkövető!C213)","v":"0"}]
[null,211,{"$f":"Pontszámkövető!C214&COUNTIF(Pontszámkövető!$C$4:C214,Pontszámkövető!C214)","v":"0"}]
[null,212,{"$f":"Pontszámkövető!C215&COUNTIF(Pontszámkövető!$C$4:C215,Pontszámkövető!C215)","v":"0"}]
[null,213,{"$f":"Pontszámkövető!C216&COUNTIF(Pontszámkövető!$C$4:C216,Pontszámkövető!C216)","v":"0"}]
[null,214,{"$f":"Pontszámkövető!C217&COUNTIF(Pontszámkövető!$C$4:C217,Pontszámkövető!C217)","v":"0"}]
[null,215,{"$f":"Pontszámkövető!C218&COUNTIF(Pontszámkövető!$C$4:C218,Pontszámkövető!C218)","v":"0"}]
[null,216,{"$f":"Pontszámkövető!C219&COUNTIF(Pontszámkövető!$C$4:C219,Pontszámkövető!C219)","v":"0"}]
[null,217,{"$f":"Pontszámkövető!C220&COUNTIF(Pontszámkövető!$C$4:C220,Pontszámkövető!C220)","v":"0"}]
[null,218,{"$f":"Pontszámkövető!C221&COUNTIF(Pontszámkövető!$C$4:C221,Pontszámkövető!C221)","v":"0"}]
[null,219,{"$f":"Pontszámkövető!C222&COUNTIF(Pontszámkövető!$C$4:C222,Pontszámkövető!C222)","v":"0"}]
[null,220,{"$f":"Pontszámkövető!C223&COUNTIF(Pontszámkövető!$C$4:C223,Pontszámkövető!C223)","v":"0"}]
[null,221,{"$f":"Pontszámkövető!C224&COUNTIF(Pontszámkövető!$C$4:C224,Pontszámkövető!C224)","v":"0"}]
[null,222,{"$f":"Pontszámkövető!C225&COUNTIF(Pontszámkövető!$C$4:C225,Pontszámkövető!C225)","v":"0"}]
[null,223,{"$f":"Pontszámkövető!C226&COUNTIF(Pontszámkövető!$C$4:C226,Pontszámkövető!C226)","v":"0"}]
[null,224,{"$f":"Pontszámkövető!C227&COUNTIF(Pontszámkövető!$C$4:C227,Pontszámkövető!C227)","v":"0"}]
[null,225,{"$f":"Pontszámkövető!C228&COUNTIF(Pontszámkövető!$C$4:C228,Pontszámkövető!C228)","v":"0"}]
[null,226,{"$f":"Pontszámkövető!C229&COUNTIF(Pontszámkövető!$C$4:C229,Pontszámkövető!C229)","v":"0"}]
[null,227,{"$f":"Pontszámkövető!C230&COUNTIF(Pontszámkövető!$C$4:C230,Pontszámkövető!C230)","v":"0"}]
[null,228,{"$f":"Pontszámkövető!C231&COUNTIF(Pontszámkövető!$C$4:C231,Pontszámkövető!C231)","v":"0"}]
[null,229,{"$f":"Pontszámkövető!C232&COUNTIF(Pontszámkövető!$C$4:C232,Pontszámkövető!C232)","v":"0"}]
[null,230,{"$f":"Pontszámkövető!C233&COUNTIF(Pontszámkövető!$C$4:C233,Pontszámkövető!C233)","v":"0"}]
[null,231,{"$f":"Pontszámkövető!C234&COUNTIF(Pontszámkövető!$C$4:C234,Pontszámkövető!C234)","v":"0"}]
[null,232,{"$f":"Pontszámkövető!C235&COUNTIF(Pontszámkövető!$C$4:C235,Pontszámkövető!C235)","v":"0"}]
[null,233,{"$f":"Pontszámkövető!C236&COUNTIF(Pontszámkövető!$C$4:C236,Pontszámkövető!C236)","v":"0"}]
[null,234,{"$f":"Pontszámkövető!C237&COUNTIF(Pontszámkövető!$C$4:C237,Pontszámkövető!C237)","v":"0"}]
[null,235,{"$f":"Pontszámkövető!C238&COUNTIF(Pontszámkövető!$C$4:C238,Pontszámkövető!C238)","v":"0"}]
[null,236,{"$f":"Pontszámkövető!C239&COUNTIF(Pontszámkövető!$C$4:C239,Pontszámkövető!C239)","v":"0"}]
[null,237,{"$f":"Pontszámkövető!C240&COUNTIF(Pontszámkövető!$C$4:C240,Pontszámkövető!C240)","v":"0"}]
[null,238,{"$f":"Pontszámkövető!C241&COUNTIF(Pontszámkövető!$C$4:C241,Pontszámkövető!C241)","v":"0"}]
[null,239,{"$f":"Pontszámkövető!C242&COUNTIF(Pontszámkövető!$C$4:C242,Pontszámkövető!C242)","v":"0"}]
[null,240,{"$f":"Pontszámkövető!C243&COUNTIF(Pontszámkövető!$C$4:C243,Pontszámkövető!C243)","v":"0"}]
[null,241,{"$f":"Pontszámkövető!C244&COUNTIF(Pontszámkövető!$C$4:C244,Pontszámkövető!C244)","v":"0"}]
[null,242,{"$f":"Pontszámkövető!C245&COUNTIF(Pontszámkövető!$C$4:C245,Pontszámkövető!C245)","v":"0"}]
[null,243,{"$f":"Pontszámkövető!C246&COUNTIF(Pontszámkövető!$C$4:C246,Pontszámkövető!C246)","v":"0"}]
[null,244,{"$f":"Pontszámkövető!C247&COUNTIF(Pontszámkövető!$C$4:C247,Pontszámkövető!C247)","v":"0"}]
[null,245,{"$f":"Pontszámkövető!C248&COUNTIF(Pontszámkövető!$C$4:C248,Pontszámkövető!C248)","v":"0"}]
[null,246,{"$f":"Pontszámkövető!C249&COUNTIF(Pontszámkövető!$C$4:C249,Pontszámkövető!C249)","v":"0"}]
[null,247,{"$f":"Pontszámkövető!C250&COUNTIF(Pontszámkövető!$C$4:C250,Pontszámkövető!C250)","v":"0"}]
[null,248,{"$f":"Pontszámkövető!C251&COUNTIF(Pontszámkövető!$C$4:C251,Pontszámkövető!C251)","v":"0"}]
[null,249,{"$f":"Pontszámkövető!C252&COUNTIF(Pontszámkövető!$C$4:C252,Pontszámkövető!C252)","v":"0"}]
[null,250,{"$f":"Pontszámkövető!C253&COUNTIF(Pontszámkövető!$C$4:C253,Pontszámkövető!C253)","v":"0"}]
[null,251,{"$f":"Pontszámkövető!C254&COUNTIF(Pontszámkövető!$C$4:C254,Pontszámkövető!C254)","v":"0"}]
[null,252,{"$f":"Pontszámkövető!C255&COUNTIF(Pontszámkövető!$C$4:C255,Pontszámkövető!C255)","v":"0"}]
[null,253,{"$f":"Pontszámkövető!C256&COUNTIF(Pontszámkövető!$C$4:C256,Pontszámkövető!C256)","v":"0"}]
[null,254,{"$f":"Pontszámkövető!C257&COUNTIF(Pontszámkövető!$C$4:C257,Pontszámkövető!C257)","v":"0"}]
[null,255,{"$f":"Pontszámkövető!C258&COUNTIF(Pontszámkövető!$C$4:C258,Pontszámkövető!C258)","v":"0"}]
[null,256,{"$f":"Pontszámkövető!C259&COUNTIF(Pontszámkövető!$C$4:C259,Pontszámkövető!C259)","v":"0"}]
[null,257,{"$f":"Pontszámkövető!C260&COUNTIF(Pontszámkövető!$C$4:C260,Pontszámkövető!C260)","v":"0"}]
[null,258,{"$f":"Pontszámkövető!C261&COUNTIF(Pontszámkövető!$C$4:C261,Pontszámkövető!C261)","v":"0"}]
[null,259,{"$f":"Pontszámkövető!C262&COUNTIF(Pontszámkövető!$C$4:C262,Pontszámkövető!C262)","v":"0"}]
[null,260,{"$f":"Pontszámkövető!C263&COUNTIF(Pontszámkövető!$C$4:C263,Pontszámkövető!C263)","v":"0"}]
[null,261,{"$f":"Pontszámkövető!C264&COUNTIF(Pontszámkövető!$C$4:C264,Pontszámkövető!C264)","v":"0"}]
[null,262,{"$f":"Pontszámkövető!C265&COUNTIF(Pontszámkövető!$C$4:C265,Pontszámkövető!C265)","v":"0"}]
[null,263,{"$f":"Pontszámkövető!C266&COUNTIF(Pontszámkövető!$C$4:C266,Pontszámkövető!C266)","v":"0"}]
[null,264,{"$f":"Pontszámkövető!C267&COUNTIF(Pontszámkövető!$C$4:C267,Pontszámkövető!C267)","v":"0"}]
[null,265,{"$f":"Pontszámkövető!C268&COUNTIF(Pontszámkövető!$C$4:C268,Pontszámkövető!C268)","v":"0"}]
[null,266,{"$f":"Pontszámkövető!C269&COUNTIF(Pontszámkövető!$C$4:C269,Pontszámkövető!C269)","v":"0"}]
[null,267,{"$f":"Pontszámkövető!C270&COUNTIF(Pontszámkövető!$C$4:C270,Pontszámkövető!C270)","v":"0"}]
[null,268,{"$f":"Pontszámkövető!C271&COUNTIF(Pontszámkövető!$C$4:C271,Pontszámkövető!C271)","v":"0"}]
[null,269,{"$f":"Pontszámkövető!C272&COUNTIF(Pontszámkövető!$C$4:C272,Pontszámkövető!C272)","v":"0"}]
[null,270,{"$f":"Pontszámkövető!C273&COUNTIF(Pontszámkövető!$C$4:C273,Pontszámkövető!C273)","v":"0"}]
[null,271,{"$f":"Pontszámkövető!C274&COUNTIF(Pontszámkövető!$C$4:C274,Pontszámkövető!C274)","v":"0"}]
[null,272,{"$f":"Pontszámkövető!C275&COUNTIF(Pontszámkövető!$C$4:C275,Pontszámkövető!C275)","v":"0"}]
[null,273,{"$f":"Pontszámkövető!C276&COUNTIF(Pontszámkövető!$C$4:C276,Pontszámkövető!C276)","v":"0"}]
[null,274,{"$f":"Pontszámkövető!C277&COUNTIF(Pontszámkövető!$C$4:C277,Pontszámkövető!C277)","v":"0"}]
[null,275,{"$f":"Pontszámkövető!C278&COUNTIF(Pontszámkövető!$C$4:C278,Pontszámkövető!C278)","v":"0"}]
[null,276,{"$f":"Pontszámkövető!C279&COUNTIF(Pontszámkövető!$C$4:C279,Pontszámkövető!C279)","v":"0"}]
[null,277,{"$f":"Pontszámkövető!C280&COUNTIF(Pontszámkövető!$C$4:C280,Pontszámkövető!C280)","v":"0"}]
[null,278,{"$f":"Pontszámkövető!C281&COUNTIF(Pontszámkövető!$C$4:C281,Pontszámkövető!C281)","v":"0"}]
[null,279,{"$f":"Pontszámkövető!C282&COUNTIF(Pontszámkövető!$C$4:C282,Pontszámkövető!C282)","v":"0"}]
[null,280,{"$f":"Pontszámkövető!C283&COUNTIF(Pontszámkövető!$C$4:C283,Pontszámkövető!C283)","v":"0"}]
[null,281,{"$f":"Pontszámkövető!C284&COUNTIF(Pontszámkövető!$C$4:C284,Pontszámkövető!C284)","v":"0"}]
[null,282,{"$f":"Pontszámkövető!C285&COUNTIF(Pontszámkövető!$C$4:C285,Pontszámkövető!C285)","v":"0"}]
[null,283,{"$f":"Pontszámkövető!C286&COUNTIF(Pontszámkövető!$C$4:C286,Pontszámkövető!C286)","v":"0"}]
[null,284,{"$f":"Pontszámkövető!C287&COUNTIF(Pontszámkövető!$C$4:C287,Pontszámkövető!C287)","v":"0"}]
[null,285,{"$f":"Pontszámkövető!C288&COUNTIF(Pontszámkövető!$C$4:C288,Pontszámkövető!C288)","v":"0"}]
[null,286,{"$f":"Pontszámkövető!C289&COUNTIF(Pontszámkövető!$C$4:C289,Pontszámkövető!C289)","v":"0"}]
[null,287,{"$f":"Pontszámkövető!C290&COUNTIF(Pontszámkövető!$C$4:C290,Pontszámkövető!C290)","v":"0"}]
[null,288,{"$f":"Pontszámkövető!C291&COUNTIF(Pontszámkövető!$C$4:C291,Pontszámkövető!C291)","v":"0"}]
[null,289,{"$f":"Pontszámkövető!C292&COUNTIF(Pontszámkövető!$C$4:C292,Pontszámkövető!C292)","v":"0"}]
[null,290,{"$f":"Pontszámkövető!C293&COUNTIF(Pontszámkövető!$C$4:C293,Pontszámkövető!C293)","v":"0"}]
[null,291,{"$f":"Pontszámkövető!C294&COUNTIF(Pontszámkövető!$C$4:C294,Pontszámkövető!C294)","v":"0"}]
[null,292,{"$f":"Pontszámkövető!C295&COUNTIF(Pontszámkövető!$C$4:C295,Pontszámkövető!C295)","v":"0"}]
[null,293,{"$f":"Pontszámkövető!C296&COUNTIF(Pontszámkövető!$C$4:C296,Pontszámkövető!C296)","v":"0"}]
[null,294,{"$f":"Pontszámkövető!C297&COUNTIF(Pontszámkövető!$C$4:C297,Pontszámkövető!C297)","v":"0"}]
[null,295,{"$f":"Pontszámkövető!C298&COUNTIF(Pontszámkövető!$C$4:C298,Pontszámkövető!C298)","v":"0"}]
[null,296,{"$f":"Pontszámkövető!C299&COUNTIF(Pontszámkövető!$C$4:C299,Pontszámkövető!C299)","v":"0"}]
[null,297,{"$f":"Pontszámkövető!C300&COUNTIF(Pontszámkövető!$C$4:C300,Pontszámkövető!C300)","v":"0"}]
[null,298,{"$f":"Pontszámkövető!C301&COUNTIF(Pontszámkövető!$C$4:C301,Pontszámkövető!C301)","v":"0"}]
[null,299,{"$f":"Pontszámkövető!C302&COUNTIF(Pontszámkövető!$C$4:C302,Pontszámkövető!C302)","v":"0"}]
[null,300,{"$f":"Pontszámkövető!C303&COUNTIF(Pontszámkövető!$C$4:C303,Pontszámkövető!C303)","v":"0"}]
[null,301,{"$f":"Pontszámkövető!C304&COUNTIF(Pontszámkövető!$C$4:C304,Pontszámkövető!C304)","v":"0"}]
[null,302,{"$f":"Pontszámkövető!C305&COUNTIF(Pontszámkövető!$C$4:C305,Pontszámkövető!C305)","v":"0"}]
[null,303,{"$f":"Pontszámkövető!C306&COUNTIF(Pontszámkövető!$C$4:C306,Pontszámkövető!C306)","v":"0"}]
[null,304,{"$f":"Pontszámkövető!C307&COUNTIF(Pontszámkövető!$C$4:C307,Pontszámkövető!C307)","v":"0"}]
[null,305,{"$f":"Pontszámkövető!C308&COUNTIF(Pontszámkövető!$C$4:C308,Pontszámkövető!C308)","v":"0"}]
[null,306,{"$f":"Pontszámkövető!C309&COUNTIF(Pontszámkövető!$C$4:C309,Pontszámkövető!C309)","v":"0"}]
[null,307,{"$f":"Pontszámkövető!C310&COUNTIF(Pontszámkövető!$C$4:C310,Pontszámkövető!C310)","v":"0"}]
[null,308,{"$f":"Pontszámkövető!C311&COUNTIF(Pontszámkövető!$C$4:C311,Pontszámkövető!C311)","v":"0"}]
[null,309,{"$f":"Pontszámkövető!C312&COUNTIF(Pontszámkövető!$C$4:C312,Pontszámkövető!C312)","v":"0"}]
[null,310,{"$f":"Pontszámkövető!C313&COUNTIF(Pontszámkövető!$C$4:C313,Pontszámkövető!C313)","v":"0"}]
[null,311,{"$f":"Pontszámkövető!C314&COUNTIF(Pontszámkövető!$C$4:C314,Pontszámkövető!C314)","v":"0"}]
[null,312,{"$f":"Pontszámkövető!C315&COUNTIF(Pontszámkövető!$C$4:C315,Pontszámkövető!C315)","v":"0"}]
[null,313,{"$f":"Pontszámkövető!C316&COUNTIF(Pontszámkövető!$C$4:C316,Pontszámkövető!C316)","v":"0"}]
[null,314,{"$f":"Pontszámkövető!C317&COUNTIF(Pontszámkövető!$C$4:C317,Pontszámkövető!C317)","v":"0"}]
[null,315,{"$f":"Pontszámkövető!C318&COUNTIF(Pontszámkövető!$C$4:C318,Pontszámkövető!C318)","v":"0"}]
[null,316,{"$f":"Pontszámkövető!C319&COUNTIF(Pontszámkövető!$C$4:C319,Pontszámkövető!C319)","v":"0"}]
[null,317,{"$f":"Pontszámkövető!C320&COUNTIF(Pontszámkövető!$C$4:C320,Pontszámkövető!C320)","v":"0"}]
[null,318,{"$f":"Pontszámkövető!C321&COUNTIF(Pontszámkövető!$C$4:C321,Pontszámkövető!C321)","v":"0"}]
[null,319,{"$f":"Pontszámkövető!C322&COUNTIF(Pontszámkövető!$C$4:C322,Pontszámkövető!C322)","v":"0"}]
[null,320,{"$f":"Pontszámkövető!C323&COUNTIF(Pontszámkövető!$C$4:C323,Pontszámkövető!C323)","v":"0"}]
[null,321,{"$f":"Pontszámkövető!C324&COUNTIF(Pontszámkövető!$C$4:C324,Pontszámkövető!C324)","v":"0"}]
[null,322,{"$f":"Pontszámkövető!C325&COUNTIF(Pontszámkövető!$C$4:C325,Pontszámkövető!C325)","v":"0"}]
[null,323,{"$f":"Pontszámkövető!C326&COUNTIF(Pontszámkövető!$C$4:C326,Pontszámkövető!C326)","v":"0"}]
[null,324,{"$f":"Pontszámkövető!C327&COUNTIF(Pontszámkövető!$C$4:C327,Pontszámkövető!C327)","v":"0"}]
[null,325,{"$f":"Pontszámkövető!C328&COUNTIF(Pontszámkövető!$C$4:C328,Pontszámkövető!C328)","v":"0"}]
[null,326,{"$f":"Pontszámkövető!C329&COUNTIF(Pontszámkövető!$C$4:C329,Pontszámkövető!C329)","v":"0"}]
[null,327,{"$f":"Pontszámkövető!C330&COUNTIF(Pontszámkövető!$C$4:C330,Pontszámkövető!C330)","v":"0"}]
[null,328,{"$f":"Pontszámkövető!C331&COUNTIF(Pontszámkövető!$C$4:C331,Pontszámkövető!C331)","v":"0"}]
[null,329,{"$f":"Pontszámkövető!C332&COUNTIF(Pontszámkövető!$C$4:C332,Pontszámkövető!C332)","v":"0"}]
[null,330,{"$f":"Pontszámkövető!C333&COUNTIF(Pontszámkövető!$C$4:C333,Pontszámkövető!C333)","v":"0"}]
[null,331,{"$f":"Pontszámkövető!C334&COUNTIF(Pontszámkövető!$C$4:C334,Pontszámkövető!C334)","v":"0"}]
[null,332,{"$f":"Pontszámkövető!C335&COUNTIF(Pontszámkövető!$C$4:C335,Pontszámkövető!C335)","v":"0"}]
[null,333,{"$f":"Pontszámkövető!C336&COUNTIF(Pontszámkövető!$C$4:C336,Pontszámkövető!C336)","v":"0"}]
[null,334,{"$f":"Pontszámkövető!C337&COUNTIF(Pontszámkövető!$C$4:C337,Pontszámkövető!C337)","v":"0"}]
[null,335,{"$f":"Pontszámkövető!C338&COUNTIF(Pontszámkövető!$C$4:C338,Pontszámkövető!C338)","v":"0"}]
[null,336,{"$f":"Pontszámkövető!C339&COUNTIF(Pontszámkövető!$C$4:C339,Pontszámkövető!C339)","v":"0"}]
[null,337,{"$f":"Pontszámkövető!C340&COUNTIF(Pontszámkövető!$C$4:C340,Pontszámkövető!C340)","v":"0"}]
[null,338,{"$f":"Pontszámkövető!C341&COUNTIF(Pontszámkövető!$C$4:C341,Pontszámkövető!C341)","v":"0"}]
[null,339,{"$f":"Pontszámkövető!C342&COUNTIF(Pontszámkövető!$C$4:C342,Pontszámkövető!C342)","v":"0"}]
[null,340,{"$f":"Pontszámkövető!C343&COUNTIF(Pontszámkövető!$C$4:C343,Pontszámkövető!C343)","v":"0"}]
[null,341,{"$f":"Pontszámkövető!C344&COUNTIF(Pontszámkövető!$C$4:C344,Pontszámkövető!C344)","v":"0"}]
[null,342,{"$f":"Pontszámkövető!C345&COUNTIF(Pontszámkövető!$C$4:C345,Pontszámkövető!C345)","v":"0"}]
[null,343,{"$f":"Pontszámkövető!C346&COUNTIF(Pontszámkövető!$C$4:C346,Pontszámkövető!C346)","v":"0"}]
[null,344,{"$f":"Pontszámkövető!C347&COUNTIF(Pontszámkövető!$C$4:C347,Pontszámkövető!C347)","v":"0"}]
[null,345,{"$f":"Pontszámkövető!C348&COUNTIF(Pontszámkövető!$C$4:C348,Pontszámkövető!C348)","v":"0"}]
[null,346,{"$f":"Pontszámkövető!C349&COUNTIF(Pontszámkövető!$C$4:C349,Pontszámkövető!C349)","v":"0"}]
[null,347,{"$f":"Pontszámkövető!C350&COUNTIF(Pontszámkövető!$C$4:C350,Pontszámkövető!C350)","v":"0"}]
[null,348,{"$f":"Pontszámkövető!C351&COUNTIF(Pontszámkövető!$C$4:C351,Pontszámkövető!C351)","v":"0"}]
[null,349,{"$f":"Pontszámkövető!C352&COUNTIF(Pontszámkövető!$C$4:C352,Pontszámkövető!C352)","v":"0"}]
[null,350,{"$f":"Pontszámkövető!C353&COUNTIF(Pontszámkövető!$C$4:C353,Pontszámkövető!C353)","v":"0"}]
[null,351,{"$f":"Pontszámkövető!C354&COUNTIF(Pontszámkövető!$C$4:C354,Pontszámkövető!C354)","v":"0"}]
[null,352,{"$f":"Pontszámkövető!C355&COUNTIF(Pontszámkövető!$C$4:C355,Pontszámkövető!C355)","v":"0"}]
[null,353,{"$f":"Pontszámkövető!C356&COUNTIF(Pontszámkövető!$C$4:C356,Pontszámkövető!C356)","v":"0"}]
[null,354,{"$f":"Pontszámkövető!C357&COUNTIF(Pontszámkövető!$C$4:C357,Pontszámkövető!C357)","v":"0"}]
[null,355,{"$f":"Pontszámkövető!C358&COUNTIF(Pontszámkövető!$C$4:C358,Pontszámkövető!C358)","v":"0"}]
[null,356,{"$f":"Pontszámkövető!C359&COUNTIF(Pontszámkövető!$C$4:C359,Pontszámkövető!C359)","v":"0"}]
[null,357,{"$f":"Pontszámkövető!C360&COUNTIF(Pontszámkövető!$C$4:C360,Pontszámkövető!C360)","v":"0"}]
[null,358,{"$f":"Pontszámkövető!C361&COUNTIF(Pontszámkövető!$C$4:C361,Pontszámkövető!C361)","v":"0"}]
[null,359,{"$f":"Pontszámkövető!C362&COUNTIF(Pontszámkövető!$C$4:C362,Pontszámkövető!C362)","v":"0"}]
[null,360,{"$f":"Pontszámkövető!C363&COUNTIF(Pontszámkövető!$C$4:C363,Pontszámkövető!C363)","v":"0"}]
[null,361,{"$f":"Pontszámkövető!C364&COUNTIF(Pontszámkövető!$C$4:C364,Pontszámkövető!C364)","v":"0"}]
[null,362,{"$f":"Pontszámkövető!C365&COUNTIF(Pontszámkövető!$C$4:C365,Pontszámkövető!C365)","v":"0"}]
[null,363,{"$f":"Pontszámkövető!C366&COUNTIF(Pontszámkövető!$C$4:C366,Pontszámkövető!C366)","v":"0"}]
[null,364,{"$f":"Pontszámkövető!C367&COUNTIF(Pontszámkövető!$C$4:C367,Pontszámkövető!C367)","v":"0"}]
[null,365,{"$f":"Pontszámkövető!C368&COUNTIF(Pontszámkövető!$C$4:C368,Pontszámkövető!C368)","v":"0"}]
[null,366,{"$f":"Pontszámkövető!C369&COUNTIF(Pontszámkövető!$C$4:C369,Pontszámkövető!C369)","v":"0"}]
[null,367,{"$f":"Pontszámkövető!C370&COUNTIF(Pontszámkövető!$C$4:C370,Pontszámkövető!C370)","v":"0"}]
[null,368,{"$f":"Pontszámkövető!C371&COUNTIF(Pontszámkövető!$C$4:C371,Pontszámkövető!C371)","v":"0"}]
[null,369,{"$f":"Pontszámkövető!C372&COUNTIF(Pontszámkövető!$C$4:C372,Pontszámkövető!C372)","v":"0"}]
[null,370,{"$f":"Pontszámkövető!C373&COUNTIF(Pontszámkövető!$C$4:C373,Pontszámkövető!C373)","v":"0"}]
[null,371,{"$f":"Pontszámkövető!C374&COUNTIF(Pontszámkövető!$C$4:C374,Pontszámkövető!C374)","v":"0"}]
[null,372,{"$f":"Pontszámkövető!C375&COUNTIF(Pontszámkövető!$C$4:C375,Pontszámkövető!C375)","v":"0"}]
[null,373,{"$f":"Pontszámkövető!C376&COUNTIF(Pontszámkövető!$C$4:C376,Pontszámkövető!C376)","v":"0"}]
[null,374,{"$f":"Pontszámkövető!C377&COUNTIF(Pontszámkövető!$C$4:C377,Pontszámkövető!C377)","v":"0"}]
[null,375,{"$f":"Pontszámkövető!C378&COUNTIF(Pontszámkövető!$C$4:C378,Pontszámkövető!C378)","v":"0"}]
[null,376,{"$f":"Pontszámkövető!C379&COUNTIF(Pontszámkövető!$C$4:C379,Pontszámkövető!C379)","v":"0"}]
[null,377,{"$f":"Pontszámkövető!C380&COUNTIF(Pontszámkövető!$C$4:C380,Pontszámkövető!C380)","v":"0"}]
[null,378,{"$f":"Pontszámkövető!C381&COUNTIF(Pontszámkövető!$C$4:C381,Pontszámkövető!C381)","v":"0"}]
[null,379,{"$f":"Pontszámkövető!C382&COUNTIF(Pontszámkövető!$C$4:C382,Pontszámkövető!C382)","v":"0"}]
[null,380,{"$f":"Pontszámkövető!C383&COUNTIF(Pontszámkövető!$C$4:C383,Pontszámkövető!C383)","v":"0"}]
[null,381,{"$f":"Pontszámkövető!C384&COUNTIF(Pontszámkövető!$C$4:C384,Pontszámkövető!C384)","v":"0"}]
[null,382,{"$f":"Pontszámkövető!C385&COUNTIF(Pontszámkövető!$C$4:C385,Pontszámkövető!C385)","v":"0"}]
[null,383,{"$f":"Pontszámkövető!C386&COUNTIF(Pontszámkövető!$C$4:C386,Pontszámkövető!C386)","v":"0"}]
[null,384,{"$f":"Pontszámkövető!C387&COUNTIF(Pontszámkövető!$C$4:C387,Pontszámkövető!C387)","v":"0"}]
[null,385,{"$f":"Pontszámkövető!C388&COUNTIF(Pontszámkövető!$C$4:C388,Pontszámkövető!C388)","v":"0"}]
[null,386,{"$f":"Pontszámkövető!C389&COUNTIF(Pontszámkövető!$C$4:C389,Pontszámkövető!C389)","v":"0"}]
[null,387,{"$f":"Pontszámkövető!C390&COUNTIF(Pontszámkövető!$C$4:C390,Pontszámkövető!C390)","v":"0"}]
[null,388,{"$f":"Pontszámkövető!C391&COUNTIF(Pontszámkövető!$C$4:C391,Pontszámkövető!C391)","v":"0"}]
[null,389,{"$f":"Pontszámkövető!C392&COUNTIF(Pontszámkövető!$C$4:C392,Pontszámkövető!C392)","v":"0"}]
[null,390,{"$f":"Pontszámkövető!C393&COUNTIF(Pontszámkövető!$C$4:C393,Pontszámkövető!C393)","v":"0"}]
[null,391,{"$f":"Pontszámkövető!C394&COUNTIF(Pontszámkövető!$C$4:C394,Pontszámkövető!C394)","v":"0"}]
[null,392,{"$f":"Pontszámkövető!C395&COUNTIF(Pontszámkövető!$C$4:C395,Pontszámkövető!C395)","v":"0"}]
[null,393,{"$f":"Pontszámkövető!C396&COUNTIF(Pontszámkövető!$C$4:C396,Pontszámkövető!C396)","v":"0"}]
[null,394,{"$f":"Pontszámkövető!C397&COUNTIF(Pontszámkövető!$C$4:C397,Pontszámkövető!C397)","v":"0"}]
[null,395,{"$f":"Pontszámkövető!C398&COUNTIF(Pontszámkövető!$C$4:C398,Pontszámkövető!C398)","v":"0"}]
[null,396,{"$f":"Pontszámkövető!C399&COUNTIF(Pontszámkövető!$C$4:C399,Pontszámkövető!C399)","v":"0"}]
[null,397,{"$f":"Pontszámkövető!C400&COUNTIF(Pontszámkövető!$C$4:C400,Pontszámkövető!C400)","v":"0"}]
[null,398,{"$f":"Pontszámkövető!C401&COUNTIF(Pontszámkövető!$C$4:C401,Pontszámkövető!C401)","v":"0"}]
[null,399,{"$f":"Pontszámkövető!C402&COUNTIF(Pontszámkövető!$C$4:C402,Pontszámkövető!C402)","v":"0"}]
[null,400,{"$f":"Pontszámkövető!C403&COUNTIF(Pontszámkövető!$C$4:C403,Pontszámkövető!C403)","v":"0"}]
[null,401,{"$f":"Pontszámkövető!C404&COUNTIF(Pontszámkövető!$C$4:C404,Pontszámkövető!C404)","v":"0"}]
[null,402,{"$f":"Pontszámkövető!C405&COUNTIF(Pontszámkövető!$C$4:C405,Pontszámkövető!C405)","v":"0"}]
[null,403,{"$f":"Pontszámkövető!C406&COUNTIF(Pontszámkövető!$C$4:C406,Pontszámkövető!C406)","v":"0"}]
[null,404,{"$f":"Pontszámkövető!C407&COUNTIF(Pontszámkövető!$C$4:C407,Pontszámkövető!C407)","v":"0"}]
[null,405,{"$f":"Pontszámkövető!C408&COUNTIF(Pontszámkövető!$C$4:C408,Pontszámkövető!C408)","v":"0"}]
[null,406,{"$f":"Pontszámkövető!C409&COUNTIF(Pontszámkövető!$C$4:C409,Pontszámkövető!C409)","v":"0"}]
[null,407,{"$f":"Pontszámkövető!C410&COUNTIF(Pontszámkövető!$C$4:C410,Pontszámkövető!C410)","v":"0"}]
[null,408,{"$f":"Pontszámkövető!C411&COUNTIF(Pontszámkövető!$C$4:C411,Pontszámkövető!C411)","v":"0"}]
[null,409,{"$f":"Pontszámkövető!C412&COUNTIF(Pontszámkövető!$C$4:C412,Pontszámkövető!C412)","v":"0"}]
[null,410,{"$f":"Pontszámkövető!C413&COUNTIF(Pontszámkövető!$C$4:C413,Pontszámkövető!C413)","v":"0"}]
[null,411,{"$f":"Pontszámkövető!C414&COUNTIF(Pontszámkövető!$C$4:C414,Pontszámkövető!C414)","v":"0"}]
[null,412,{"$f":"Pontszámkövető!C415&COUNTIF(Pontszámkövető!$C$4:C415,Pontszámkövető!C415)","v":"0"}]
[null,413,{"$f":"Pontszámkövető!C416&COUNTIF(Pontszámkövető!$C$4:C416,Pontszámkövető!C416)","v":"0"}]
[null,414,{"$f":"Pontszámkövető!C417&COUNTIF(Pontszámkövető!$C$4:C417,Pontszámkövető!C417)","v":"0"}]
[null,415,{"$f":"Pontszámkövető!C418&COUNTIF(Pontszámkövető!$C$4:C418,Pontszámkövető!C418)","v":"0"}]
[null,416,{"$f":"Pontszámkövető!C419&COUNTIF(Pontszámkövető!$C$4:C419,Pontszámkövető!C419)","v":"0"}]
[null,417,{"$f":"Pontszámkövető!C420&COUNTIF(Pontszámkövető!$C$4:C420,Pontszámkövető!C420)","v":"0"}]
[null,418,{"$f":"Pontszámkövető!C421&COUNTIF(Pontszámkövető!$C$4:C421,Pontszámkövető!C421)","v":"0"}]
[null,419,{"$f":"Pontszámkövető!C422&COUNTIF(Pontszámkövető!$C$4:C422,Pontszámkövető!C422)","v":"0"}]
[null,420,{"$f":"Pontszámkövető!C423&COUNTIF(Pontszámkövető!$C$4:C423,Pontszámkövető!C423)","v":"0"}]
[null,421,{"$f":"Pontszámkövető!C424&COUNTIF(Pontszámkövető!$C$4:C424,Pontszámkövető!C424)","v":"0"}]
[null,422,{"$f":"Pontszámkövető!C425&COUNTIF(Pontszámkövető!$C$4:C425,Pontszámkövető!C425)","v":"0"}]
[null,423,{"$f":"Pontszámkövető!C426&COUNTIF(Pontszámkövető!$C$4:C426,Pontszámkövető!C426)","v":"0"}]
[null,424,{"$f":"Pontszámkövető!C427&COUNTIF(Pontszámkövető!$C$4:C427,Pontszámkövető!C427)","v":"0"}]
[null,425,{"$f":"Pontszámkövető!C428&COUNTIF(Pontszámkövető!$C$4:C428,Pontszámkövető!C428)","v":"0"}]
[null,426,{"$f":"Pontszámkövető!C429&COUNTIF(Pontszámkövető!$C$4:C429,Pontszámkövető!C429)","v":"0"}]
[null,427,{"$f":"Pontszámkövető!C430&COUNTIF(Pontszámkövető!$C$4:C430,Pontszámkövető!C430)","v":"0"}]
[null,428,{"$f":"Pontszámkövető!C431&COUNTIF(Pontszámkövető!$C$4:C431,Pontszámkövető!C431)","v":"0"}]
[null,429,{"$f":"Pontszámkövető!C432&COUNTIF(Pontszámkövető!$C$4:C432,Pontszámkövető!C432)","v":"0"}]
[null,430,{"$f":"Pontszámkövető!C433&COUNTIF(Pontszámkövető!$C$4:C433,Pontszámkövető!C433)","v":"0"}]
[null,431,{"$f":"Pontszámkövető!C434&COUNTIF(Pontszámkövető!$C$4:C434,Pontszámkövető!C434)","v":"0"}]
[null,432,{"$f":"Pontszámkövető!C435&COUNTIF(Pontszámkövető!$C$4:C435,Pontszámkövető!C435)","v":"0"}]
[null,433,{"$f":"Pontszámkövető!C436&COUNTIF(Pontszámkövető!$C$4:C436,Pontszámkövető!C436)","v":"0"}]
[null,434,{"$f":"Pontszámkövető!C437&COUNTIF(Pontszámkövető!$C$4:C437,Pontszámkövető!C437)","v":"0"}]
[null,435,{"$f":"Pontszámkövető!C438&COUNTIF(Pontszámkövető!$C$4:C438,Pontszámkövető!C438)","v":"0"}]
[null,436,{"$f":"Pontszámkövető!C439&COUNTIF(Pontszámkövető!$C$4:C439,Pontszámkövető!C439)","v":"0"}]
[null,437,{"$f":"Pontszámkövető!C440&COUNTIF(Pontszámkövető!$C$4:C440,Pontszámkövető!C440)","v":"0"}]
[null,438,{"$f":"Pontszámkövető!C441&COUNTIF(Pontszámkövető!$C$4:C441,Pontszámkövető!C441)","v":"0"}]
[null,439,{"$f":"Pontszámkövető!C442&COUNTIF(Pontszámkövető!$C$4:C442,Pontszámkövető!C442)","v":"0"}]
[null,440,{"$f":"Pontszámkövető!C443&COUNTIF(Pontszámkövető!$C$4:C443,Pontszámkövető!C443)","v":"0"}]
[null,441,{"$f":"Pontszámkövető!C444&COUNTIF(Pontszámkövető!$C$4:C444,Pontszámkövető!C444)","v":"0"}]
[null,442,{"$f":"Pontszámkövető!C445&COUNTIF(Pontszámkövető!$C$4:C445,Pontszámkövető!C445)","v":"0"}]
[null,443,{"$f":"Pontszámkövető!C446&COUNTIF(Pontszámkövető!$C$4:C446,Pontszámkövető!C446)","v":"0"}]
[null,444,{"$f":"Pontszámkövető!C447&COUNTIF(Pontszámkövető!$C$4:C447,Pontszámkövető!C447)","v":"0"}]
[null,445,{"$f":"Pontszámkövető!C448&COUNTIF(Pontszámkövető!$C$4:C448,Pontszámkövető!C448)","v":"0"}]
[null,446,{"$f":"Pontszámkövető!C449&COUNTIF(Pontszámkövető!$C$4:C449,Pontszámkövető!C449)","v":"0"}]
[null,447,{"$f":"Pontszámkövető!C450&COUNTIF(Pontszámkövető!$C$4:C450,Pontszámkövető!C450)","v":"0"}]
[null,448,{"$f":"Pontszámkövető!C451&COUNTIF(Pontszámkövető!$C$4:C451,Pontszámkövető!C451)","v":"0"}]
[null,449,{"$f":"Pontszámkövető!C452&COUNTIF(Pontszámkövető!$C$4:C452,Pontszámkövető!C452)","v":"0"}]
[null,450,{"$f":"Pontszámkövető!C453&COUNTIF(Pontszámkövető!$C$4:C453,Pontszámkövető!C453)","v":"0"}]
[null,451,{"$f":"Pontszámkövető!C454&COUNTIF(Pontszámkövető!$C$4:C454,Pontszámkövető!C454)","v":"0"}]
[null,452,{"$f":"Pontszámkövető!C455&COUNTIF(Pontszámkövető!$C$4:C455,Pontszámkövető!C455)","v":"0"}]
[null,453,{"$f":"Pontszámkövető!C456&COUNTIF(Pontszámkövető!$C$4:C456,Pontszámkövető!C456)","v":"0"}]
[null,454,{"$f":"Pontszámkövető!C457&COUNTIF(Pontszámkövető!$C$4:C457,Pontszámkövető!C457)","v":"0"}]
[null,455,{"$f":"Pontszámkövető!C458&COUNTIF(Pontszámkövető!$C$4:C458,Pontszámkövető!C458)","v":"0"}]
[null,456,{"$f":"Pontszámkövető!C459&COUNTIF(Pontszámkövető!$C$4:C459,Pontszámkövető!C459)","v":"0"}]
[null,457,{"$f":"Pontszámkövető!C460&COUNTIF(Pontszámkövető!$C$4:C460,Pontszámkövető!C460)","v":"0"}]
[null,458,{"$f":"Pontszámkövető!C461&COUNTIF(Pontszámkövető!$C$4:C461,Pontszámkövető!C461)","v":"0"}]
[null,459,{"$f":"Pontszámkövető!C462&COUNTIF(Pontszámkövető!$C$4:C462,Pontszámkövető!C462)","v":"0"}]
[null,460,{"$f":"Pontszámkövető!C463&COUNTIF(Pontszámkövető!$C$4:C463,Pontszámkövető!C463)","v":"0"}]
[null,461,{"$f":"Pontszámkövető!C464&COUNTIF(Pontszámkövető!$C$4:C464,Pontszámkövető!C464)","v":"0"}]
[null,462,{"$f":"Pontszámkövető!C465&COUNTIF(Pontszámkövető!$C$4:C465,Pontszámkövető!C465)","v":"0"}]
[null,463,{"$f":"Pontszámkövető!C466&COUNTIF(Pontszámkövető!$C$4:C466,Pontszámkövető!C466)","v":"0"}]
[null,464,{"$f":"Pontszámkövető!C467&COUNTIF(Pontszámkövető!$C$4:C467,Pontszámkövető!C467)","v":"0"}]
[null,465,{"$f":"Pontszámkövető!C468&COUNTIF(Pontszámkövető!$C$4:C468,Pontszámkövető!C468)","v":"0"}]
[null,466,{"$f":"Pontszámkövető!C469&COUNTIF(Pontszámkövető!$C$4:C469,Pontszámkövető!C469)","v":"0"}]
[null,467,{"$f":"Pontszámkövető!C470&COUNTIF(Pontszámkövető!$C$4:C470,Pontszámkövető!C470)","v":"0"}]
[null,468,{"$f":"Pontszámkövető!C471&COUNTIF(Pontszámkövető!$C$4:C471,Pontszámkövető!C471)","v":"0"}]
[null,469,{"$f":"Pontszámkövető!C472&COUNTIF(Pontszámkövető!$C$4:C472,Pontszámkövető!C472)","v":"0"}]
[null,470,{"$f":"Pontszámkövető!C473&COUNTIF(Pontszámkövető!$C$4:C473,Pontszámkövető!C473)","v":"0"}]
[null,471,{"$f":"Pontszámkövető!C474&COUNTIF(Pontszámkövető!$C$4:C474,Pontszámkövető!C474)","v":"0"}]
[null,472,{"$f":"Pontszámkövető!C475&COUNTIF(Pontszámkövető!$C$4:C475,Pontszámkövető!C475)","v":"0"}]
[null,473,{"$f":"Pontszámkövető!C476&COUNTIF(Pontszámkövető!$C$4:C476,Pontszámkövető!C476)","v":"0"}]
[null,474,{"$f":"Pontszámkövető!C477&COUNTIF(Pontszámkövető!$C$4:C477,Pontszámkövető!C477)","v":"0"}]
[null,475,{"$f":"Pontszámkövető!C478&COUNTIF(Pontszámkövető!$C$4:C478,Pontszámkövető!C478)","v":"0"}]
[null,476,{"$f":"Pontszámkövető!C479&COUNTIF(Pontszámkövető!$C$4:C479,Pontszámkövető!C479)","v":"0"}]
[null,477,{"$f":"Pontszámkövető!C480&COUNTIF(Pontszámkövető!$C$4:C480,Pontszámkövető!C480)","v":"0"}]
[null,478,{"$f":"Pontszámkövető!C481&COUNTIF(Pontszámkövető!$C$4:C481,Pontszámkövető!C481)","v":"0"}]
[null,479,{"$f":"Pontszámkövető!C482&COUNTIF(Pontszámkövető!$C$4:C482,Pontszámkövető!C482)","v":"0"}]
[null,480,{"$f":"Pontszámkövető!C483&COUNTIF(Pontszámkövető!$C$4:C483,Pontszámkövető!C483)","v":"0"}]
[null,481,{"$f":"Pontszámkövető!C484&COUNTIF(Pontszámkövető!$C$4:C484,Pontszámkövető!C484)","v":"0"}]
[null,482,{"$f":"Pontszámkövető!C485&COUNTIF(Pontszámkövető!$C$4:C485,Pontszámkövető!C485)","v":"0"}]
[null,483,{"$f":"Pontszámkövető!C486&COUNTIF(Pontszámkövető!$C$4:C486,Pontszámkövető!C486)","v":"0"}]
[null,484,{"$f":"Pontszámkövető!C487&COUNTIF(Pontszámkövető!$C$4:C487,Pontszámkövető!C487)","v":"0"}]
[null,485,{"$f":"Pontszámkövető!C488&COUNTIF(Pontszámkövető!$C$4:C488,Pontszámkövető!C488)","v":"0"}]
[null,486,{"$f":"Pontszámkövető!C489&COUNTIF(Pontszámkövető!$C$4:C489,Pontszámkövető!C489)","v":"0"}]
[null,487,{"$f":"Pontszámkövető!C490&COUNTIF(Pontszámkövető!$C$4:C490,Pontszámkövető!C490)","v":"0"}]
[null,488,{"$f":"Pontszámkövető!C491&COUNTIF(Pontszámkövető!$C$4:C491,Pontszámkövető!C491)","v":"0"}]
[null,489,{"$f":"Pontszámkövető!C492&COUNTIF(Pontszámkövető!$C$4:C492,Pontszámkövető!C492)","v":"0"}]
[null,490,{"$f":"Pontszámkövető!C493&COUNTIF(Pontszámkövető!$C$4:C493,Pontszámkövető!C493)","v":"0"}]
[null,491,{"$f":"Pontszámkövető!C494&COUNTIF(Pontszámkövető!$C$4:C494,Pontszámkövető!C494)","v":"0"}]
[null,492,{"$f":"Pontszámkövető!C495&COUNTIF(Pontszámkövető!$C$4:C495,Pontszámkövető!C495)","v":"0"}]
[null,493,{"$f":"Pontszámkövető!C496&COUNTIF(Pontszámkövető!$C$4:C496,Pontszámkövető!C496)","v":"0"}]
[null,494,{"$f":"Pontszámkövető!C497&COUNTIF(Pontszámkövető!$C$4:C497,Pontszámkövető!C497)","v":"0"}]
[null,495,{"$f":"Pontszámkövető!C498&COUNTIF(Pontszámkövető!$C$4:C498,Pontszámkövető!C498)","v":"0"}]
[null,496,{"$f":"Pontszámkövető!C499&COUNTIF(Pontszámkövető!$C$4:C499,Pontszámkövető!C499)","v":"0"}]
[null,497,{"$f":"Pontszámkövető!C500&COUNTIF(Pontszámkövető!$C$4:C500,Pontszámkövető!C500)","v":"0"}]
[null,498,{"$f":"Pontszámkövető!C501&COUNTIF(Pontszámkövető!$C$4:C501,Pontszámkövető!C501)","v":"0"}]
[null,499,{"$f":"Pontszámkövető!C502&COUNTIF(Pontszámkövető!$C$4:C502,Pontszámkövető!C502)","v":"0"}]
[null,500,{"$f":"Pontszámkövető!C503&COUNTIF(Pontszámkövető!$C$4:C503,Pontszámkövető!C503)","v":"0"}]
[null,501,{"$f":"Pontszámkövető!C504&COUNTIF(Pontszámkövető!$C$4:C504,Pontszámkövető!C504)","v":"0"}]
[null,502,{"$f":"Pontszámkövető!C505&COUNTIF(Pontszámkövető!$C$4:C505,Pontszámkövető!C505)","v":"0"}]
[null,503,{"$f":"Pontszámkövető!C506&COUNTIF(Pontszámkövető!$C$4:C506,Pontszámkövető!C506)","v":"0"}]
[null,504,{"$f":"Pontszámkövető!C507&COUNTIF(Pontszámkövető!$C$4:C507,Pontszámkövető!C507)","v":"0"}]
[null,505,{"$f":"Pontszámkövető!C508&COUNTIF(Pontszámkövető!$C$4:C508,Pontszámkövető!C508)","v":"0"}]
[null,506,{"$f":"Pontszámkövető!C509&COUNTIF(Pontszámkövető!$C$4:C509,Pontszámkövető!C509)","v":"0"}]
[null,507,{"$f":"Pontszámkövető!C510&COUNTIF(Pontszámkövető!$C$4:C510,Pontszámkövető!C510)","v":"0"}]
[null,508,{"$f":"Pontszámkövető!C511&COUNTIF(Pontszámkövető!$C$4:C511,Pontszámkövető!C511)","v":"0"}]
[null,509,{"$f":"Pontszámkövető!C512&COUNTIF(Pontszámkövető!$C$4:C512,Pontszámkövető!C512)","v":"0"}]
[null,510,{"$f":"Pontszámkövető!C513&COUNTIF(Pontszámkövető!$C$4:C513,Pontszámkövető!C513)","v":"0"}]
[null,511,{"$f":"Pontszámkövető!C514&COUNTIF(Pontszámkövető!$C$4:C514,Pontszámkövető!C514)","v":"0"}]
[null,512,{"$f":"Pontszámkövető!C515&COUNTIF(Pontszámkövető!$C$4:C515,Pontszámkövető!C515)","v":"0"}]
[null,513,{"$f":"Pontszámkövető!C516&COUNTIF(Pontszámkövető!$C$4:C516,Pontszámkövető!C516)","v":"0"}]
[null,514,{"$f":"Pontszámkövető!C517&COUNTIF(Pontszámkövető!$C$4:C517,Pontszámkövető!C517)","v":"0"}]
[null,515,{"$f":"Pontszámkövető!C518&COUNTIF(Pontszámkövető!$C$4:C518,Pontszámkövető!C518)","v":"0"}]
[null,516,{"$f":"Pontszámkövető!C519&COUNTIF(Pontszámkövető!$C$4:C519,Pontszámkövető!C519)","v":"0"}]
[null,517,{"$f":"Pontszámkövető!C520&COUNTIF(Pontszámkövető!$C$4:C520,Pontszámkövető!C520)","v":"0"}]
[null,518,{"$f":"Pontszámkövető!C521&COUNTIF(Pontszámkövető!$C$4:C521,Pontszámkövető!C521)","v":"0"}]
[null,519,{"$f":"Pontszámkövető!C522&COUNTIF(Pontszámkövető!$C$4:C522,Pontszámkövető!C522)","v":"0"}]
[null,520,{"$f":"Pontszámkövető!C523&COUNTIF(Pontszámkövető!$C$4:C523,Pontszámkövető!C523)","v":"0"}]
[null,521,{"$f":"Pontszámkövető!C524&COUNTIF(Pontszámkövető!$C$4:C524,Pontszámkövető!C524)","v":"0"}]
[null,522,{"$f":"Pontszámkövető!C525&COUNTIF(Pontszámkövető!$C$4:C525,Pontszámkövető!C525)","v":"0"}]
[null,523,{"$f":"Pontszámkövető!C526&COUNTIF(Pontszámkövető!$C$4:C526,Pontszámkövető!C526)","v":"0"}]
[null,524,{"$f":"Pontszámkövető!C527&COUNTIF(Pontszámkövető!$C$4:C527,Pontszámkövető!C527)","v":"0"}]
[null,525,{"$f":"Pontszámkövető!C528&COUNTIF(Pontszámkövető!$C$4:C528,Pontszámkövető!C528)","v":"0"}]
[null,526,{"$f":"Pontszámkövető!C529&COUNTIF(Pontszámkövető!$C$4:C529,Pontszámkövető!C529)","v":"0"}]
[null,527,{"$f":"Pontszámkövető!C530&COUNTIF(Pontszámkövető!$C$4:C530,Pontszámkövető!C530)","v":"0"}]
[null,528,{"$f":"Pontszámkövető!C531&COUNTIF(Pontszámkövető!$C$4:C531,Pontszámkövető!C531)","v":"0"}]
[null,529,{"$f":"Pontszámkövető!C532&COUNTIF(Pontszámkövető!$C$4:C532,Pontszámkövető!C532)","v":"0"}]
[null,530,{"$f":"Pontszámkövető!C533&COUNTIF(Pontszámkövető!$C$4:C533,Pontszámkövető!C533)","v":"0"}]
[null,531,{"$f":"Pontszámkövető!C534&COUNTIF(Pontszámkövető!$C$4:C534,Pontszámkövető!C534)","v":"0"}]
[null,532,{"$f":"Pontszámkövető!C535&COUNTIF(Pontszámkövető!$C$4:C535,Pontszámkövető!C535)","v":"0"}]
[null,533,{"$f":"Pontszámkövető!C536&COUNTIF(Pontszámkövető!$C$4:C536,Pontszámkövető!C536)","v":"0"}]
[null,534,{"$f":"Pontszámkövető!C537&COUNTIF(Pontszámkövető!$C$4:C537,Pontszámkövető!C537)","v":"0"}]
[null,535,{"$f":"Pontszámkövető!C538&COUNTIF(Pontszámkövető!$C$4:C538,Pontszámkövető!C538)","v":"0"}]
[null,536,{"$f":"Pontszámkövető!C539&COUNTIF(Pontszámkövető!$C$4:C539,Pontszámkövető!C539)","v":"0"}]
[null,537,{"$f":"Pontszámkövető!C540&COUNTIF(Pontszámkövető!$C$4:C540,Pontszámkövető!C540)","v":"0"}]
[null,538,{"$f":"Pontszámkövető!C541&COUNTIF(Pontszámkövető!$C$4:C541,Pontszámkövető!C541)","v":"0"}]
[null,539,{"$f":"Pontszámkövető!C542&COUNTIF(Pontszámkövető!$C$4:C542,Pontszámkövető!C542)","v":"0"}]
[null,540,{"$f":"Pontszámkövető!C543&COUNTIF(Pontszámkövető!$C$4:C543,Pontszámkövető!C543)","v":"0"}]
[null,541,{"$f":"Pontszámkövető!C544&COUNTIF(Pontszámkövető!$C$4:C544,Pontszámkövető!C544)","v":"0"}]
[null,542,{"$f":"Pontszámkövető!C545&COUNTIF(Pontszámkövető!$C$4:C545,Pontszámkövető!C545)","v":"0"}]
[null,543,{"$f":"Pontszámkövető!C546&COUNTIF(Pontszámkövető!$C$4:C546,Pontszámkövető!C546)","v":"0"}]
[null,544,{"$f":"Pontszámkövető!C547&COUNTIF(Pontszámkövető!$C$4:C547,Pontszámkövető!C547)","v":"0"}]
[null,545,{"$f":"Pontszámkövető!C548&COUNTIF(Pontszámkövető!$C$4:C548,Pontszámkövető!C548)","v":"0"}]
[null,546,{"$f":"Pontszámkövető!C549&COUNTIF(Pontszámkövető!$C$4:C549,Pontszámkövető!C549)","v":"0"}]
[null,547,{"$f":"Pontszámkövető!C550&COUNTIF(Pontszámkövető!$C$4:C550,Pontszámkövető!C550)","v":"0"}]
[null,548,{"$f":"Pontszámkövető!C551&COUNTIF(Pontszámkövető!$C$4:C551,Pontszámkövető!C551)","v":"0"}]
[null,549,{"$f":"Pontszámkövető!C552&COUNTIF(Pontszámkövető!$C$4:C552,Pontszámkövető!C552)","v":"0"}]
[null,550,{"$f":"Pontszámkövető!C553&COUNTIF(Pontszámkövető!$C$4:C553,Pontszámkövető!C553)","v":"0"}]
[null,551,{"$f":"Pontszámkövető!C554&COUNTIF(Pontszámkövető!$C$4:C554,Pontszámkövető!C554)","v":"0"}]
[null,552,{"$f":"Pontszámkövető!C555&COUNTIF(Pontszámkövető!$C$4:C555,Pontszámkövető!C555)","v":"0"}]
[null,553,{"$f":"Pontszámkövető!C556&COUNTIF(Pontszámkövető!$C$4:C556,Pontszámkövető!C556)","v":"0"}]
[null,554,{"$f":"Pontszámkövető!C557&COUNTIF(Pontszámkövető!$C$4:C557,Pontszámkövető!C557)","v":"0"}]
[null,555,{"$f":"Pontszámkövető!C558&COUNTIF(Pontszámkövető!$C$4:C558,Pontszámkövető!C558)","v":"0"}]
[null,556,{"$f":"Pontszámkövető!C559&COUNTIF(Pontszámkövető!$C$4:C559,Pontszámkövető!C559)","v":"0"}]
[null,557,{"$f":"Pontszámkövető!C560&COUNTIF(Pontszámkövető!$C$4:C560,Pontszámkövető!C560)","v":"0"}]
[null,558,{"$f":"Pontszámkövető!C561&COUNTIF(Pontszámkövető!$C$4:C561,Pontszámkövető!C561)","v":"0"}]
[null,559,{"$f":"Pontszámkövető!C562&COUNTIF(Pontszámkövető!$C$4:C562,Pontszámkövető!C562)","v":"0"}]
[null,560,{"$f":"Pontszámkövető!C563&COUNTIF(Pontszámkövető!$C$4:C563,Pontszámkövető!C563)","v":"0"}]
[null,561,{"$f":"Pontszámkövető!C564&COUNTIF(Pontszámkövető!$C$4:C564,Pontszámkövető!C564)","v":"0"}]
[null,562,{"$f":"Pontszámkövető!C565&COUNTIF(Pontszámkövető!$C$4:C565,Pontszámkövető!C565)","v":"0"}]
[null,563,{"$f":"Pontszámkövető!C566&COUNTIF(Pontszámkövető!$C$4:C566,Pontszámkövető!C566)","v":"0"}]
[null,564,{"$f":"Pontszámkövető!C567&COUNTIF(Pontszámkövető!$C$4:C567,Pontszámkövető!C567)","v":"0"}]
[null,565,{"$f":"Pontszámkövető!C568&COUNTIF(Pontszámkövető!$C$4:C568,Pontszámkövető!C568)","v":"0"}]
[null,566,{"$f":"Pontszámkövető!C569&COUNTIF(Pontszámkövető!$C$4:C569,Pontszámkövető!C569)","v":"0"}]
[null,567,{"$f":"Pontszámkövető!C570&COUNTIF(Pontszámkövető!$C$4:C570,Pontszámkövető!C570)","v":"0"}]
[null,568,{"$f":"Pontszámkövető!C571&COUNTIF(Pontszámkövető!$C$4:C571,Pontszámkövető!C571)","v":"0"}]
[null,569,{"$f":"Pontszámkövető!C572&COUNTIF(Pontszámkövető!$C$4:C572,Pontszámkövető!C572)","v":"0"}]
[null,570,{"$f":"Pontszámkövető!C573&COUNTIF(Pontszámkövető!$C$4:C573,Pontszámkövető!C573)","v":"0"}]
[null,571,{"$f":"Pontszámkövető!C574&COUNTIF(Pontszámkövető!$C$4:C574,Pontszámkövető!C574)","v":"0"}]
[null,572,{"$f":"Pontszámkövető!C575&COUNTIF(Pontszámkövető!$C$4:C575,Pontszámkövető!C575)","v":"0"}]
[null,573,{"$f":"Pontszámkövető!C576&COUNTIF(Pontszámkövető!$C$4:C576,Pontszámkövető!C576)","v":"0"}]
[null,574,{"$f":"Pontszámkövető!C577&COUNTIF(Pontszámkövető!$C$4:C577,Pontszámkövető!C577)","v":"0"}]
[null,575,{"$f":"Pontszámkövető!C578&COUNTIF(Pontszámkövető!$C$4:C578,Pontszámkövető!C578)","v":"0"}]
[null,576,{"$f":"Pontszámkövető!C579&COUNTIF(Pontszámkövető!$C$4:C579,Pontszámkövető!C579)","v":"0"}]
[null,577,{"$f":"Pontszámkövető!C580&COUNTIF(Pontszámkövető!$C$4:C580,Pontszámkövető!C580)","v":"0"}]
[null,578,{"$f":"Pontszámkövető!C581&COUNTIF(Pontszámkövető!$C$4:C581,Pontszámkövető!C581)","v":"0"}]
[null,579,{"$f":"Pontszámkövető!C582&COUNTIF(Pontszámkövető!$C$4:C582,Pontszámkövető!C582)","v":"0"}]
[null,580,{"$f":"Pontszámkövető!C583&COUNTIF(Pontszámkövető!$C$4:C583,Pontszámkövető!C583)","v":"0"}]
[null,581,{"$f":"Pontszámkövető!C584&COUNTIF(Pontszámkövető!$C$4:C584,Pontszámkövető!C584)","v":"0"}]
[null,582,{"$f":"Pontszámkövető!C585&COUNTIF(Pontszámkövető!$C$4:C585,Pontszámkövető!C585)","v":"0"}]
[null,583,{"$f":"Pontszámkövető!C586&COUNTIF(Pontszámkövető!$C$4:C586,Pontszámkövető!C586)","v":"0"}]
[null,584,{"$f":"Pontszámkövető!C587&COUNTIF(Pontszámkövető!$C$4:C587,Pontszámkövető!C587)","v":"0"}]
[null,585,{"$f":"Pontszámkövető!C588&COUNTIF(Pontszámkövető!$C$4:C588,Pontszámkövető!C588)","v":"0"}]
[null,586,{"$f":"Pontszámkövető!C589&COUNTIF(Pontszámkövető!$C$4:C589,Pontszámkövető!C589)","v":"0"}]
[null,587,{"$f":"Pontszámkövető!C590&COUNTIF(Pontszámkövető!$C$4:C590,Pontszámkövető!C590)","v":"0"}]
[null,588,{"$f":"Pontszámkövető!C591&COUNTIF(Pontszámkövető!$C$4:C591,Pontszámkövető!C591)","v":"0"}]
[null,589,{"$f":"Pontszámkövető!C592&COUNTIF(Pontszámkövető!$C$4:C592,Pontszámkövető!C592)","v":"0"}]
[null,590,{"$f":"Pontszámkövető!C593&COUNTIF(Pontszámkövető!$C$4:C593,Pontszámkövető!C593)","v":"0"}]
[null,591,{"$f":"Pontszámkövető!C594&COUNTIF(Pontszámkövető!$C$4:C594,Pontszámkövető!C594)","v":"0"}]
[null,592,{"$f":"Pontszámkövető!C595&COUNTIF(Pontszámkövető!$C$4:C595,Pontszámkövető!C595)","v":"0"}]
[null,593,{"$f":"Pontszámkövető!C596&COUNTIF(Pontszámkövető!$C$4:C596,Pontszámkövető!C596)","v":"0"}]
[null,594,{"$f":"Pontszámkövető!C597&COUNTIF(Pontszámkövető!$C$4:C597,Pontszámkövető!C597)","v":"0"}]
[null,595,{"$f":"Pontszámkövető!C598&COUNTIF(Pontszámkövető!$C$4:C598,Pontszámkövető!C598)","v":"0"}]
[null,596,{"$f":"Pontszámkövető!C599&COUNTIF(Pontszámkövető!$C$4:C599,Pontszámkövető!C599)","v":"0"}]
[null,597,{"$f":"Pontszámkövető!C600&COUNTIF(Pontszámkövető!$C$4:C600,Pontszámkövető!C600)","v":"0"}]
[null,598,{"$f":"Pontszámkövető!C601&COUNTIF(Pontszámkövető!$C$4:C601,Pontszámkövető!C601)","v":"0"}]
[null,599,{"$f":"Pontszámkövető!C602&COUNTIF(Pontszámkövető!$C$4:C602,Pontszámkövető!C602)","v":"0"}]
[null,600,{"$f":"Pontszámkövető!C603&COUNTIF(Pontszámkövető!$C$4:C603,Pontszámkövető!C603)","v":"0"}]
[null,601,{"$f":"Pontszámkövető!C604&COUNTIF(Pontszámkövető!$C$4:C604,Pontszámkövető!C604)","v":"0"}]
[null,602,{"$f":"Pontszámkövető!C605&COUNTIF(Pontszámkövető!$C$4:C605,Pontszámkövető!C605)","v":"0"}]
[null,603,{"$f":"Pontszámkövető!C606&COUNTIF(Pontszámkövető!$C$4:C606,Pontszámkövető!C606)","v":"0"}]
[null,604,{"$f":"Pontszámkövető!C607&COUNTIF(Pontszámkövető!$C$4:C607,Pontszámkövető!C607)","v":"0"}]
[null,605,{"$f":"Pontszámkövető!C608&COUNTIF(Pontszámkövető!$C$4:C608,Pontszámkövető!C608)","v":"0"}]
[null,606,{"$f":"Pontszámkövető!C609&COUNTIF(Pontszámkövető!$C$4:C609,Pontszámkövető!C609)","v":"0"}]
[null,607,{"$f":"Pontszámkövető!C610&COUNTIF(Pontszámkövető!$C$4:C610,Pontszámkövető!C610)","v":"0"}]
[null,608,{"$f":"Pontszámkövető!C611&COUNTIF(Pontszámkövető!$C$4:C611,Pontszámkövető!C611)","v":"0"}]
[null,609,{"$f":"Pontszámkövető!C612&COUNTIF(Pontszámkövető!$C$4:C612,Pontszámkövető!C612)","v":"0"}]
[null,610,{"$f":"Pontszámkövető!C613&COUNTIF(Pontszámkövető!$C$4:C613,Pontszámkövető!C613)","v":"0"}]
[null,611,{"$f":"Pontszámkövető!C614&COUNTIF(Pontszámkövető!$C$4:C614,Pontszámkövető!C614)","v":"0"}]
[null,612,{"$f":"Pontszámkövető!C615&COUNTIF(Pontszámkövető!$C$4:C615,Pontszámkövető!C615)","v":"0"}]
[null,613,{"$f":"Pontszámkövető!C616&COUNTIF(Pontszámkövető!$C$4:C616,Pontszámkövető!C616)","v":"0"}]
[null,614,{"$f":"Pontszámkövető!C617&COUNTIF(Pontszámkövető!$C$4:C617,Pontszámkövető!C617)","v":"0"}]
[null,615,{"$f":"Pontszámkövető!C618&COUNTIF(Pontszámkövető!$C$4:C618,Pontszámkövető!C618)","v":"0"}]
[null,616,{"$f":"Pontszámkövető!C619&COUNTIF(Pontszámkövető!$C$4:C619,Pontszámkövető!C619)","v":"0"}]
[null,617,{"$f":"Pontszámkövető!C620&COUNTIF(Pontszámkövető!$C$4:C620,Pontszámkövető!C620)","v":"0"}]
[null,618,{"$f":"Pontszámkövető!C621&COUNTIF(Pontszámkövető!$C$4:C621,Pontszámkövető!C621)","v":"0"}]
[null,619,{"$f":"Pontszámkövető!C622&COUNTIF(Pontszámkövető!$C$4:C622,Pontszámkövető!C622)","v":"0"}]
[null,620,{"$f":"Pontszámkövető!C623&COUNTIF(Pontszámkövető!$C$4:C623,Pontszámkövető!C623)","v":"0"}]
[null,621,{"$f":"Pontszámkövető!C624&COUNTIF(Pontszámkövető!$C$4:C624,Pontszámkövető!C624)","v":"0"}]
[null,622,{"$f":"Pontszámkövető!C625&COUNTIF(Pontszámkövető!$C$4:C625,Pontszámkövető!C625)","v":"0"}]
[null,623,{"$f":"Pontszámkövető!C626&COUNTIF(Pontszámkövető!$C$4:C626,Pontszámkövető!C626)","v":"0"}]
[null,624,{"$f":"Pontszámkövető!C627&COUNTIF(Pontszámkövető!$C$4:C627,Pontszámkövető!C627)","v":"0"}]
[null,625,{"$f":"Pontszámkövető!C628&COUNTIF(Pontszámkövető!$C$4:C628,Pontszámkövető!C628)","v":"0"}]